DepartmentFamily,Entity,Date,ExpenseType,ExpenseArea,Supplier,PaymentNumber,InvoiceDistributionAmount,InvoiceDescription,SupplierPostCode,ExpenditureType
FOOD STANDARDS AGENCY - Westminster,FOOD STANDARDS AGENCY - Westminster,2018-02-12,EXP - PURCHASE OF GOODS/SERVICES - ACCOMM & BLDNG MGMT - FURNITURE & FITTINGS,OWOW,BERWIN LEIGHTON PAISNER,10000118,1448550,Physical Spaces ?,EC4R 9HA,Admin
FOOD STANDARDS AGENCY - Westminster,FOOD STANDARDS AGENCY - Westminster,2018-02-20,EXP - PURCHASE OF GOODS/SERVICES - OTHER - PROGRAMME EXPENDITURE,Regulatory Delivery ,TRADING STANDARDS INSTITUTE (GRANTS),1011705169,274068.62,Feed Off. Conts 2017/18 Prog delivery (inland/ports). Feed Official Controls funding 2017/18: To deliver a programme of Official Controls (inland inspections/sampling & ports work) in 2017/18.,SS15 6TH,Programme
FOOD STANDARDS AGENCY - Westminster,FOOD STANDARDS AGENCY - Westminster,2018-02-20,EXP - PURCHASE OF GOODS/SERVICES - OTHER - PROGRAMME EXPENDITURE,Regulatory Delivery ,TRADING STANDARDS INSTITUTE (GRANTS),1011705169,136976.41,Feed Off: To deliver a programme of Official Controls (Food Hygiene at Primary Production) in 2017/18.,SS15 6TH,Programme
FOOD STANDARDS AGENCY - Westminster,FOOD STANDARDS AGENCY - Westminster,2018-02-19,Exp - Purchase Of Goods/Services - Consultancy,Regulating our Future,IBM UNITED KINGDOM LTD,1011705156,122050,"ROF _ Food business registration, segmentation and single view (Alpha Stage)",PO6 3AE,Admin
FOOD STANDARDS AGENCY - Westminster,FOOD STANDARDS AGENCY - Westminster,2018-02-12,EXP - PURCHASE OF GOODS/SERV - SUPPORT - IT SUPPORT SERVICES,IT Strategy,COREAZURE LTD,1011705059,118732,Datacentre Discovery and Design - Milestone 3: Fixed Price Azure Infrastructure Build (WP2a),EC1A 4EN,Admin
FOOD STANDARDS AGENCY - Westminster,FOOD STANDARDS AGENCY - Westminster,2018-02-20,EXP - PURCHASE OF GOODS/SERV - SUPPORT - IT SUPPORT SERVICES,IT Service Delivery,EXPONENTIAL E LTD,1011705163,117867.67,"Year 1 - Operate Charge - Remote Site Circuits (157 FTTC, 63 ADSL)",E1 8EU,Admin
FOOD STANDARDS AGENCY - Westminster,FOOD STANDARDS AGENCY - Westminster,2018-02-12,EXP - PURCHASE OF GOODS/SERVICES - OTHER - PROGRAMME EXPENDITURE,Allergens,UNIVERSITY OF BATH,1011705066,95300,FS305013: RETENTION,BA2 7AY,Programme
FOOD STANDARDS AGENCY - Westminster,FOOD STANDARDS AGENCY - Westminster,2018-02-09,EXP - PURCHASE OF GOODS/SERVICES - OTHER - PROGRAMME EXPENDITURE,Regulating our Future,KPMG LLP,1011705044,94350,"Research, survey and report into the baseline cost of FSA regulation falling to food business operators (FBOs)",WD17 1DE,Programme
FOOD STANDARDS AGENCY - Westminster,FOOD STANDARDS AGENCY - Westminster,2018-02-19,EXP - PURCHASE OF GOODS/SERVICES  - IT MANAGEMENT AND CHANGE - IT DEVELOPMENT,IT Strategy,RAINMAKER SOLUTIONS LTD,1011705154,90674.21,Work Package 6,MK18 1HD,Admin
FOOD STANDARDS AGENCY - Westminster,FOOD STANDARDS AGENCY - Westminster,2018-02-15,EXP - PURCHASE OF GOODS/SERVICES - OTHER - PROGRAMME EXPENDITURE,Digital,WUNDER LTD,1011705124,72818.61,FS401001 - The suppliers will help to develop a new website that meets our users? needs based on four key services. Beta part: October 2017 to March 2018,N1 9AB,Programme
FOOD STANDARDS AGENCY - Westminster,FOOD STANDARDS AGENCY - Westminster,2018-02-19,EXP - PURCHASE OF GOODS/SERVICES  - IT MANAGEMENT AND CHANGE - IT DEVELOPMENT,IT Strategy,RAINMAKER SOLUTIONS LTD,1011705154,58101,Work Package 6,MK18 1HD,Admin
FOOD STANDARDS AGENCY - Westminster,FOOD STANDARDS AGENCY - Westminster,2018-02-19,EXP - PURCHASE OF GOODS/SERVICES - OTHER - PROGRAMME EXPENDITURE,Regulatory Delivery ,ALLIED PUBLICITY SERVICES MANCHESTER LTD T/A APS GROUP,1011705150,53043.02,APS - FHRS window and wall sticker reprint for England and Wales,SK3 0ZP,Programme
FOOD STANDARDS AGENCY - Westminster,FOOD STANDARDS AGENCY - Westminster,2018-02-15,EXP - PURCHASE OF GOODS/SERVICES - OTHER ICT COSTS - COMPUTER SOFTWARE,IT Strategy,SERVICENOW UK LTD,1011705123,50688,"ServiceNow, Annual subscription 2018",TW18 4TW,Admin
FOOD STANDARDS AGENCY - Westminster,FOOD STANDARDS AGENCY - Westminster,2018-02-19,EXP - PURCHASE OF GOODS/SERV - SUPPORT - IT SUPPORT SERVICES,IT Strategy,COREAZURE LTD,1011705148,42779,Datacentre Discovery and Design - Milestone 4a: Fixed Price Migration (WP2b),EC1A 4EN,Admin
FOOD STANDARDS AGENCY - Westminster,FOOD STANDARDS AGENCY - Westminster,2018-02-13,EXP - PURCHASE OF GOODS/SERVICES - ACCOMM & BLDNG MGMT - FURNITURE & FITTINGS,OWOW,BELL INTEGRATED COMMUNICATIONS LTD,1011705088,38207.2,Physical Spaces ?  Branding for Clive House and Foss House.,WC2H 0AU,Admin
FOOD STANDARDS AGENCY - Westminster,FOOD STANDARDS AGENCY - Westminster,2018-02-05,EXP - PURCHASE OF GOODS/SERVICES - OTHER ICT COSTS - COMPUTER HARDWARE,IT Service Delivery,COREAZURE LTD,1011705007,31655,Datacentre Discovery and Design - Fixed Price - Azure Managed Service (WP4),EC1A 4EN,Admin
FOOD STANDARDS AGENCY - Westminster,FOOD STANDARDS AGENCY - Westminster,2018-02-12,EXP - AMORTISATION - INTANGIBLE ASSETS,Regulatory Delivery ,R H ENVIRONMENTAL LTD,1011705063,31350,"Smarter Communications with Local Authorities in England - (Development of the Solution, Deployment of the solution to all LA's)",SA38 9AR,Capital
FOOD STANDARDS AGENCY - Westminster,FOOD STANDARDS AGENCY - Westminster,2018-02-07,EXP - PURCHASE OF GOODS/SERVICES - OTHER - PROGRAMME EXPENDITURE,Regulatory Delivery ,TRADING STANDARDS INSTITUTE (GRANTS),1011705034,30872.5,Feed Off. Conts 2017/18 NTS/TSI fees. Feed Official Controls funding 2017/18: NTS/TSI fees.,SS15 6TH,Programme
FOOD STANDARDS AGENCY - Westminster,FOOD STANDARDS AGENCY - Westminster,2018-02-22,EXP - PURCHASE OF GOODS/SERVICES - OTHER ENERGY/UTILITIES/WASTE COST,Security & Estates,EDF ENERGY PLC,1011705201,29115.79,EDF ENERGY INVOICE 3830549,EX1 3UT,Admin
FOOD STANDARDS AGENCY - Westminster,FOOD STANDARDS AGENCY - Westminster,2018-02-07,EXP - PURCHASE OF GOODS/SERVICES - PERSONNEL RELATED - RECRUITMENT ADVERTISING,Organisational Development,CABINET OFFICE,2012700363,28931.53,Recruitment campaign for FSA - Chief Operating Officer,SW1A 2AS,Admin
FOOD STANDARDS AGENCY - Westminster,FOOD STANDARDS AGENCY - Westminster,2018-02-22,EXP - AMORTISATION - INTANGIBLE ASSETS,IT Strategy,COMPUTACENTER UK LTD,1011705198,26172.36,Clive House IT equipment - capex,AL10 9TW,Capital
FOOD STANDARDS AGENCY - Westminster,FOOD STANDARDS AGENCY - Westminster,2018-02-09,EXP - PURCHASE OF GOODS/SERVICES - MARKETING & MEDIA,Regulating our Future,COMOTION CONSULTING LTD,1011705047,24950,ROF - FHRS Vision and Ambition Support,EC1A 9PT,Admin
FOOD STANDARDS AGENCY - Westminster,FOOD STANDARDS AGENCY - Westminster,2018-02-15,EXP - PURCHASE OF GOODS/SERV - SUPPORT - IT SUPPORT SERVICES,IT Strategy,LITTLE FISH UK LTD,1011705119,24830,Office Move Costs,NG1 1LS,Admin
FOOD STANDARDS AGENCY - Westminster,FOOD STANDARDS AGENCY - Westminster,2018-02-19,Exp - Purchase Of Goods/Services - Consultancy,Regulating our Future,IBM UNITED KINGDOM LTD,1011705156,24410,"PERIOD : 01.01.2018 - 30.01.2018 ROF _ Food business registration, segmentation and single view (Alpha Stage)",PO6 3AE,Admin
FOOD STANDARDS AGENCY - Westminster,FOOD STANDARDS AGENCY - Westminster,2018-02-09,EXP - PURCHASE OF GOODS/SERV - SUPPORT - IT SUPPORT SERVICES,IT Service Delivery,LITTLE FISH UK LTD,1011705045,24264,Monthly Service Charge Sept 17 - Mar 18,NG1 1LS,Admin
FOOD STANDARDS AGENCY - Westminster,FOOD STANDARDS AGENCY - Westminster,2018-02-16,Exp - Purchase Of Goods/Services - Consultancy,Regulating our Future,IBM UNITED KINGDOM LTD,1011705147,23957.5,ROF - Balanced Scorecard.  Alpha development for enhanced registration and segmentation,PO6 3AE,Admin
FOOD STANDARDS AGENCY - Westminster,FOOD STANDARDS AGENCY - Westminster,2018-02-05,EXP - AMORTISATION - INTANGIBLE ASSETS,IT Strategy,COMPUTACENTER UK LTD,1011705008,23792.68,Clive House Monitors and Keyboards,AL10 9TW,Capital
FOOD STANDARDS AGENCY - Westminster,FOOD STANDARDS AGENCY - Westminster,2018-02-13,EXP - PURCHASE OF GOODS/SERVICES - OTHER - PROGRAMME EXPENDITURE,Microbiological Food Safety Branch,UNIVERSITY OF LIVERPOOL,1011705095,23741,06/05 - Final Technical Report. Invoice date 31/05/2017,L69 7ZX,Programme
FOOD STANDARDS AGENCY - Westminster,FOOD STANDARDS AGENCY - Westminster,2018-02-07,EXP - PURCHASE OF GOODS/SERVICES - OTHER - PROGRAMME EXPENDITURE,Regulating our Future,KANTAR UK,1011705019,23724,FS101202 - Activities associated with waves 2 and 3 of engagement (22 April and 22 July) with the independent Consumer Panel which ensures consumers are engaged in the design of the new Regulating Our Future (ROF) model.,SE1 2QY,Programme
FOOD STANDARDS AGENCY - Westminster,FOOD STANDARDS AGENCY - Westminster,2018-02-12,EXP - PURCHASE OF GOODS/SERV - SUPPORT - IT SUPPORT SERVICES,Finance Director & Branch,SHARED SERVICES CONNECTED LTD,1011705068,23331.22,SSCL Core Charge Feb 18,HP2 7AH,Admin
FOOD STANDARDS AGENCY - Westminster,FOOD STANDARDS AGENCY - Westminster,2018-02-08,EXP - PURCHASE OF GOODS/SERVICES - OTHER - PROGRAMME EXPENDITURE,Regulatory Delivery ,C E F A S,2012700366,21076,Shellfish Classification,NR33 0HT,Programme
FOOD STANDARDS AGENCY - Westminster,FOOD STANDARDS AGENCY - Westminster,2018-02-09,EXP - PURCHASE OF GOODS/SERVICES - OTHER - PROGRAMME EXPENDITURE,Regulating our Future,KPMG LLP,1011705044,20000,"Research, survey and report into the baseline cost of FSA regulation falling to FBOs",WD17 1DE,Programme
FOOD STANDARDS AGENCY - Westminster,FOOD STANDARDS AGENCY - Westminster,2018-02-23,EXP - PURCHASE OF GOODS/SERV - SUPPORT - IT SUPPORT SERVICES,IT Service Delivery,LITTLE FISH UK LTD,1011705208,18759,Monthly Laptop Service Charge Sept 17 - Mar 18,NG1 1LS,Admin
FOOD STANDARDS AGENCY - Westminster,FOOD STANDARDS AGENCY - Westminster,2018-02-23,EXP - PURCHASE OF GOODS/SERV - SUPPORT - IT SUPPORT SERVICES,IT Service Delivery,LITTLE FISH UK LTD,1011705208,18759,Monthly Laptop Service Charge Sept 17 - Mar 18,NG1 1LS,Admin
FOOD STANDARDS AGENCY - Westminster,FOOD STANDARDS AGENCY - Westminster,2018-02-23,EXP - PURCHASE OF GOODS/SERV - SUPPORT - IT SUPPORT SERVICES,IT Service Delivery,LITTLE FISH UK LTD,1011705208,18759,Monthly Laptop Service Charge Sept 17 - Mar 18,NG1 1LS,Admin
FOOD STANDARDS AGENCY - Westminster,FOOD STANDARDS AGENCY - Westminster,2018-02-19,EXP - PURCHASE OF GOODS/SERVICES  - IT MANAGEMENT AND CHANGE - IT DEVELOPMENT,IT Strategy,RAINMAKER SOLUTIONS LTD,1011705154,18134.84,PO NO 11770001614,MK18 1HD,Admin
FOOD STANDARDS AGENCY - Westminster,FOOD STANDARDS AGENCY - Westminster,2018-02-20,EXP - AMORTISATION - INTANGIBLE ASSETS,OWOW,OKTRA LTD,1011705161,14859,Various additional works,WC1V 7PB,Capital
FOOD STANDARDS AGENCY - Westminster,FOOD STANDARDS AGENCY - Westminster,2018-02-09,EXP - PURCHASE OF GOODS/SERVICES - OTHER - PROGRAMME EXPENDITURE,Regulatory Delivery ,C E F A S,2012700368,14199.38,Shellfish Biotoxin Flesh analysis - DSP,NR33 0HT,Programme
FOOD STANDARDS AGENCY - Westminster,FOOD STANDARDS AGENCY - Westminster,2018-02-09,EXP - PURCHASE OF GOODS/SERVICES - OTHER - PROGRAMME EXPENDITURE,Regulatory Delivery ,C E F A S,2012700368,12540.2,Shellfish Biotoxin Flesh analysis - PSP,NR33 0HT,Programme
FOOD STANDARDS AGENCY - Westminster,FOOD STANDARDS AGENCY - Westminster,2018-02-15,EXP - AMORTISATION - INTANGIBLE ASSETS,IT Strategy,LITTLE FISH UK LTD,1011705119,11880,New FSA Network Implementation Costs,NG1 1LS,Capital
FOOD STANDARDS AGENCY - Westminster,FOOD STANDARDS AGENCY - Westminster,2018-02-19,EXP - PURCHASE OF GOODS/SERVICES  - IT MANAGEMENT AND CHANGE - IT DEVELOPMENT,IT Strategy,RAINMAKER SOLUTIONS LTD,1011705154,11620.2,PO NO 11770001614,MK18 1HD,Admin
FOOD STANDARDS AGENCY - Westminster,FOOD STANDARDS AGENCY - Westminster,2018-02-19,EXP - PURCHASE OF GOODS/SERVICES - OTHER - PROGRAMME EXPENDITURE,Regulatory Delivery ,ALLIED PUBLICITY SERVICES MANCHESTER LTD T/A APS GROUP,1011705150,10608.6,APS - FHRS window and wall sticker reprint for England and Wales,SK3 0ZP,Programme
FOOD STANDARDS AGENCY - Westminster,FOOD STANDARDS AGENCY - Westminster,2018-02-15,EXP - PURCHASE OF GOODS/SERVICES - OTHER ICT COSTS - COMPUTER SOFTWARE,IT Strategy,SERVICENOW UK LTD,1011705123,10137.6,FULFILL USER,TW18 4TW,Admin
FOOD STANDARDS AGENCY - Westminster,FOOD STANDARDS AGENCY - Westminster,2018-02-09,EXP - PURCHASE OF GOODS/SERVICES - OTHER - PROGRAMME EXPENDITURE,Regulatory Delivery ,C E F A S,2012700368,10049.4,Shellfish Biotoxin Flesh analysis - ASP,NR33 0HT,Programme
FOOD STANDARDS AGENCY - Westminster,FOOD STANDARDS AGENCY - Westminster,2018-02-09,EXP - PURCHASE OF GOODS/SERVICES - OTHER - PROGRAMME EXPENDITURE,Regulatory Delivery ,C E F A S,2012700368,9778.42,Phytoplankton analysis 2017/18,NR33 0HT,Programme
FOOD STANDARDS AGENCY - Westminster,FOOD STANDARDS AGENCY - Westminster,2018-02-12,EXP - PURCHASE OF GOODS/SERVICES ? SUPPORT,Finance Director & Branch,RINEDATA LTD,1011705058,9500,Reporting Writing and Conversion - 10 Days,NN8 4HB,Admin
FOOD STANDARDS AGENCY - Westminster,FOOD STANDARDS AGENCY - Westminster,2018-02-13,EXP - PURCHASE OF GOODS/SERVICES - ACCOMM & BLDNG MGMT - FURNITURE & FITTINGS,OWOW,BELL INTEGRATED COMMUNICATIONS LTD,1011705088,7641.44,FSA CLIVE HOUSE ( LONDON ) DESIGN,WC2H 0AU,Admin
FOOD STANDARDS AGENCY - Westminster,FOOD STANDARDS AGENCY - Westminster,2018-02-12,EXP - PURCHASE OF GOODS/SERVICES ? SUPPORT,Finance Director & Branch,RINEDATA LTD,1011705058,7600,Reporting Writing and Conversion Additional - 8 Days Max,NN8 4HB,Admin
FOOD STANDARDS AGENCY - Westminster,FOOD STANDARDS AGENCY - Westminster,2018-02-23,EXP - PURCHASE OF GOODS/SERV - SUPPORT - IT SUPPORT SERVICES,IT Service Delivery,LITTLE FISH UK LTD,1011705208,7170,Monthly Old Laptop Support Service Charge Sept 17 - Jan 18,NG1 1LS,Admin
FOOD STANDARDS AGENCY - Westminster,FOOD STANDARDS AGENCY - Westminster,2018-02-23,EXP - PURCHASE OF GOODS/SERV - SUPPORT - IT SUPPORT SERVICES,IT Service Delivery,LITTLE FISH UK LTD,1011705208,7170,Monthly Old Laptop Support Service Charge Sept 17 - Jan 18,NG1 1LS,Admin
FOOD STANDARDS AGENCY - Westminster,FOOD STANDARDS AGENCY - Westminster,2018-02-23,EXP - PURCHASE OF GOODS/SERV - SUPPORT - IT SUPPORT SERVICES,IT Service Delivery,LITTLE FISH UK LTD,1011705208,7170,Monthly Old Laptop Support Service Charge Sept 17 - Jan 18,NG1 1LS,Admin
FOOD STANDARDS AGENCY - Westminster,FOOD STANDARDS AGENCY - Westminster,2018-02-20,EXP - AMORTISATION - INTANGIBLE ASSETS,OWOW,OKTRA LTD,1011705161,6680.98,FSA 553 ? Fit Out of 6th and 7th Floor of Clive House,WC1V 7PB,Capital
FOOD STANDARDS AGENCY - Westminster,FOOD STANDARDS AGENCY - Westminster,2018-02-12,EXP - PURCHASE OF GOODS/SERVICES ? SUPPORT,Finance Director & Branch,RINEDATA LTD,1011705058,5700,BPC Upgrade installation - 6 Days,NN8 4HB,Admin
FOOD STANDARDS AGENCY - Westminster,FOOD STANDARDS AGENCY - Westminster,2018-02-22,EXP - AMORTISATION - INTANGIBLE ASSETS,IT Strategy,COMPUTACENTER UK LTD,1011705198,5234.44,3278200 CISCO CATALYST 2960* 24,AL10 9TW,Capital
FOOD STANDARDS AGENCY - Westminster,FOOD STANDARDS AGENCY - Westminster,2018-02-12,EXP - PURCHASE OF GOODS/SERVICES ? SUPPORT,Finance Director & Branch,RINEDATA LTD,1011705058,5225,Additional work for data migration allowing for new chart of accounts structure.,NN8 4HB,Admin
FOOD STANDARDS AGENCY - Westminster,FOOD STANDARDS AGENCY - Westminster,2018-02-15,EXP - PURCHASE OF GOODS/SERV - SUPPORT - IT SUPPORT SERVICES,IT Strategy,LITTLE FISH UK LTD,1011705119,4966,EXISTING DESKTOPS KIT,NG1 1LS,Admin
FOOD STANDARDS AGENCY - Westminster,FOOD STANDARDS AGENCY - Westminster,2018-02-16,Exp - Purchase Of Goods/Services - Consultancy,Regulating our Future,IBM UNITED KINGDOM LTD,1011705147,4791.5,BALANCE SCORE,PO6 3AE,Admin
FOOD STANDARDS AGENCY - Westminster,FOOD STANDARDS AGENCY - Westminster,2018-02-05,EXP - AMORTISATION - INTANGIBLE ASSETS,IT Strategy,COMPUTACENTER UK LTD,1011705008,4758.54,"271 S7QJMB/00 27"" LED MONITOR",AL10 9TW,Capital
FOOD STANDARDS AGENCY - Westminster,FOOD STANDARDS AGENCY - Westminster,2018-02-07,EXP - PURCHASE OF GOODS/SERVICES - AIR TRAVEL,Planning and Performance,REDFERN TRAVEL LTD,1011705030,3401.42,Travel and Subsistence Week 4,BD1 5HQ,ADMIN
FOOD STANDARDS AGENCY - Westminster,FOOD STANDARDS AGENCY - Westminster,2018-02-27,EXP - PURCHASE OF GOODS/SERVICES - RAIL TRAVEL,Operational Delivery,REDFERN TRAVEL LTD,1011705242,3375.95,Travel and Subsistence Week 7,BD1 5HQ,PROGRAMME
FOOD STANDARDS AGENCY - Westminster,FOOD STANDARDS AGENCY - Westminster,2018-02-23,EXP - PURCHASE OF GOODS/SERV - SUPPORT - IT SUPPORT SERVICES,IT Service Delivery,LITTLE FISH UK LTD,1011705208,3347,Monthly Citrix Service Charge Sept 17 - Mar 18,NG1 1LS,Admin
FOOD STANDARDS AGENCY - Westminster,FOOD STANDARDS AGENCY - Westminster,2018-02-23,EXP - PURCHASE OF GOODS/SERV - SUPPORT - IT SUPPORT SERVICES,IT Service Delivery,LITTLE FISH UK LTD,1011705208,3347,Monthly Citrix Service Charge Sept 17 - Mar 18,NG1 1LS,Admin
FOOD STANDARDS AGENCY - Westminster,FOOD STANDARDS AGENCY - Westminster,2018-02-23,EXP - PURCHASE OF GOODS/SERV - SUPPORT - IT SUPPORT SERVICES,IT Service Delivery,LITTLE FISH UK LTD,1011705208,3347,Monthly Citrix Service Charge Sept 17 - Mar 18,NG1 1LS,Admin
FOOD STANDARDS AGENCY - Westminster,FOOD STANDARDS AGENCY - Westminster,2018-02-20,EXP - AMORTISATION - INTANGIBLE ASSETS,OWOW,OKTRA LTD,1011705161,2971.8,PO NO 11770002668,WC1V 7PB,Capital
FOOD STANDARDS AGENCY - Westminster,FOOD STANDARDS AGENCY - Westminster,2018-02-14,EXP - PURCHASE OF GOODS/SERVICES - RAIL TRAVEL,Regulatory Delivery ,REDFERN TRAVEL LTD,1011705112,2952.9,Travel and Subsistence Week 5,BD1 5HQ,ADMIN
FOOD STANDARDS AGENCY - Westminster,FOOD STANDARDS AGENCY - Westminster,2018-02-20,EXP - PURCHASE OF GOODS/SERVICES - RAIL TRAVEL,Operational Delivery,REDFERN TRAVEL LTD,1011705166,2883,Travel and Subsistence Week 6,BD1 5HQ,PROGRAMME
FOOD STANDARDS AGENCY - Westminster,FOOD STANDARDS AGENCY - Westminster,2018-02-07,EXP - PURCHASE OF GOODS/SERVICES - RAIL TRAVEL,Regulatory Delivery ,REDFERN TRAVEL LTD,1011705030,2788.15,Travel and Subsistence Week 4,BD1 5HQ,ADMIN
FOOD STANDARDS AGENCY - Westminster,FOOD STANDARDS AGENCY - Westminster,2018-02-07,EXP - PURCHASE OF GOODS/SERVICES - SUBSISTENCE,Food Hygiene Policy Branch,REDFERN TRAVEL LTD,1011705030,2684.63,Travel and Subsistence Week 4,BD1 5HQ,ADMIN
FOOD STANDARDS AGENCY - Westminster,FOOD STANDARDS AGENCY - Westminster,2018-02-14,EXP - PURCHASE OF GOODS/SERVICES - RAIL TRAVEL,Operational Delivery,REDFERN TRAVEL LTD,1011705112,2675.4,Travel and Subsistence Week 5,BD1 5HQ,PROGRAMME
FOOD STANDARDS AGENCY - Westminster,FOOD STANDARDS AGENCY - Westminster,2018-02-15,EXP - AMORTISATION - INTANGIBLE ASSETS,IT Strategy,LITTLE FISH UK LTD,1011705119,2376,EXISTING DESKTOPS KIT,NG1 1LS,Capital
FOOD STANDARDS AGENCY - Westminster,FOOD STANDARDS AGENCY - Westminster,2018-02-14,EXP - PURCHASE OF GOODS/SERVICES -  FOREIGN AIR TRAVEL,Regulatory & International,REDFERN TRAVEL LTD,1011705112,2351.94,Travel and Subsistence Week 5,BD1 5HQ,ADMIN
FOOD STANDARDS AGENCY - Westminster,FOOD STANDARDS AGENCY - Westminster,2018-02-07,EXP - PURCHASE OF GOODS/SERVICES - SUBSISTENCE,Operational Delivery,REDFERN TRAVEL LTD,1011705030,2287.32,Travel and Subsistence Week 4,BD1 5HQ,PROGRAMME
FOOD STANDARDS AGENCY - Westminster,FOOD STANDARDS AGENCY - Westminster,2018-02-12,EXP - PURCHASE OF GOODS/SERVICES ? SUPPORT,Finance Director & Branch,RINEDATA LTD,1011705058,2272.46,Additional travel and expenses,NN8 4HB,Admin
FOOD STANDARDS AGENCY - Westminster,FOOD STANDARDS AGENCY - Westminster,2018-02-20,EXP - PURCHASE OF GOODS/SERVICES - RAIL TRAVEL,Operations Assurance ,REDFERN TRAVEL LTD,1011705166,2185.35,Travel and Subsistence Week 6,BD1 5HQ,PROGRAMME
FOOD STANDARDS AGENCY - Westminster,FOOD STANDARDS AGENCY - Westminster,2018-02-14,EXP - PURCHASE OF GOODS/SERVICES - RAIL TRAVEL,Operations Assurance ,REDFERN TRAVEL LTD,1011705112,2160.25,Travel and Subsistence Week 5,BD1 5HQ,PROGRAMME
FOOD STANDARDS AGENCY - Westminster,FOOD STANDARDS AGENCY - Westminster,2018-02-14,EXP - PURCHASE OF GOODS/SERVICES - RAIL TRAVEL,Organisational Development,REDFERN TRAVEL LTD,1011705112,2150.1,Travel and Subsistence Week 5,BD1 5HQ,ADMIN
FOOD STANDARDS AGENCY - Westminster,FOOD STANDARDS AGENCY - Westminster,2018-02-27,EXP - PURCHASE OF GOODS/SERVICES - RAIL TRAVEL,Operations Assurance ,REDFERN TRAVEL LTD,1011705242,2061.6,Travel and Subsistence Week 7,BD1 5HQ,PROGRAMME
FOOD STANDARDS AGENCY - Westminster,FOOD STANDARDS AGENCY - Westminster,2018-02-14,EXP - PURCHASE OF GOODS/SERVICES - SUBSISTENCE,Regulating our Future,REDFERN TRAVEL LTD,1011705112,2057.26,Travel and Subsistence Week 5,BD1 5HQ,ADMIN
FOOD STANDARDS AGENCY - Westminster,FOOD STANDARDS AGENCY - Westminster,2018-02-23,EXP - PURCHASE OF GOODS/SERV - SUPPORT - IT SUPPORT SERVICES,IT Service Delivery,LITTLE FISH UK LTD,1011705208,2004,Monthly Mobile Service Charge Sept 17 - Mar 18,NG1 1LS,Admin
FOOD STANDARDS AGENCY - Westminster,FOOD STANDARDS AGENCY - Westminster,2018-02-23,EXP - PURCHASE OF GOODS/SERV - SUPPORT - IT SUPPORT SERVICES,IT Service Delivery,LITTLE FISH UK LTD,1011705208,2004,Monthly Mobile Service Charge Sept 17 - Mar 18,NG1 1LS,Admin
FOOD STANDARDS AGENCY - Westminster,FOOD STANDARDS AGENCY - Westminster,2018-02-23,EXP - PURCHASE OF GOODS/SERV - SUPPORT - IT SUPPORT SERVICES,IT Service Delivery,LITTLE FISH UK LTD,1011705208,2004,Monthly Mobile Service Charge Sept 17 - Mar 18,NG1 1LS,Admin
FOOD STANDARDS AGENCY - Westminster,FOOD STANDARDS AGENCY - Westminster,2018-02-27,EXP - PURCHASE OF GOODS/SERVICES -  FOREIGN AIR TRAVEL,Additives,REDFERN TRAVEL LTD,1011705242,1973.37,Travel and Subsistence Week 7,BD1 5HQ,ADMIN
FOOD STANDARDS AGENCY - Westminster,FOOD STANDARDS AGENCY - Westminster,2018-02-14,EXP - PURCHASE OF GOODS/SERVICES - RAIL TRAVEL,Regulating our Future,REDFERN TRAVEL LTD,1011705112,1908.55,Travel and Subsistence Week 5,BD1 5HQ,ADMIN
FOOD STANDARDS AGENCY - Westminster,FOOD STANDARDS AGENCY - Westminster,2018-02-12,EXP - PURCHASE OF GOODS/SERVICES ? SUPPORT,Finance Director & Branch,RINEDATA LTD,1011705058,1900,Cut over and documentation - 2 Days,NN8 4HB,Admin
FOOD STANDARDS AGENCY - Westminster,FOOD STANDARDS AGENCY - Westminster,2018-02-07,EXP - PURCHASE OF GOODS/SERVICES - RAIL TRAVEL,Operations Assurance ,REDFERN TRAVEL LTD,1011705030,1896.25,Travel and Subsistence Week 4,BD1 5HQ,PROGRAMME
FOOD STANDARDS AGENCY - Westminster,FOOD STANDARDS AGENCY - Westminster,2018-02-20,EXP - PURCHASE OF GOODS/SERVICES - AIR TRAVEL,Regulating our Future,REDFERN TRAVEL LTD,1011705166,1765.08,Travel and Subsistence Week 6,BD1 5HQ,ADMIN
FOOD STANDARDS AGENCY - Westminster,FOOD STANDARDS AGENCY - Westminster,2018-02-27,EXP - PURCHASE OF GOODS/SERVICES - RAIL TRAVEL,Regulatory Delivery ,REDFERN TRAVEL LTD,1011705242,1739.6,Travel and Subsistence Week 7,BD1 5HQ,ADMIN
FOOD STANDARDS AGENCY - Westminster,FOOD STANDARDS AGENCY - Westminster,2018-02-07,EXP - PURCHASE OF GOODS/SERVICES - RAIL TRAVEL,Operational Delivery,REDFERN TRAVEL LTD,1011705030,1634.2,Travel and Subsistence Week 4,BD1 5HQ,PROGRAMME
FOOD STANDARDS AGENCY - Westminster,FOOD STANDARDS AGENCY - Westminster,2018-02-20,EXP - PURCHASE OF GOODS/SERVICES - RAIL TRAVEL,Regulatory Delivery ,REDFERN TRAVEL LTD,1011705166,1614.3,Travel and Subsistence Week 6,BD1 5HQ,ADMIN
FOOD STANDARDS AGENCY - Westminster,FOOD STANDARDS AGENCY - Westminster,2018-02-07,EXP - PURCHASE OF GOODS/SERVICES - RAIL TRAVEL,Organisational Development,REDFERN TRAVEL LTD,1011705030,1611.05,Travel and Subsistence Week 4,BD1 5HQ,ADMIN
FOOD STANDARDS AGENCY - Westminster,FOOD STANDARDS AGENCY - Westminster,2018-02-12,EXP - PURCHASE OF GOODS/SERVICES ? SUPPORT,Finance Director & Branch,RINEDATA LTD,1011705058,1562.49,Expenses 27 Days,NN8 4HB,Admin
FOOD STANDARDS AGENCY - Westminster,FOOD STANDARDS AGENCY - Westminster,2018-02-20,EXP - PURCHASE OF GOODS/SERVICES - RAIL TRAVEL,Regulating our Future,REDFERN TRAVEL LTD,1011705166,1543.5,Travel and Subsistence Week 6,BD1 5HQ,ADMIN
FOOD STANDARDS AGENCY - Westminster,FOOD STANDARDS AGENCY - Westminster,2018-02-27,EXP - PURCHASE OF GOODS/SERVICES - RAIL TRAVEL,Comms Directors Office,REDFERN TRAVEL LTD,1011705242,1534.3,Travel and Subsistence Week 7,BD1 5HQ,ADMIN
FOOD STANDARDS AGENCY - Westminster,FOOD STANDARDS AGENCY - Westminster,2018-02-27,EXP - PURCHASE OF GOODS/SERVICES - RAIL TRAVEL,Regulating our Future,REDFERN TRAVEL LTD,1011705242,1431.3,Travel and Subsistence Week 7,BD1 5HQ,ADMIN
FOOD STANDARDS AGENCY - Westminster,FOOD STANDARDS AGENCY - Westminster,2018-02-27,EXP - PURCHASE OF GOODS/SERVICES - SUBSISTENCE,Operations Assurance ,REDFERN TRAVEL LTD,1011705242,1373.06,Travel and Subsistence Week 7,BD1 5HQ,PROGRAMME
FOOD STANDARDS AGENCY - Westminster,FOOD STANDARDS AGENCY - Westminster,2018-02-20,EXP - AMORTISATION - INTANGIBLE ASSETS,OWOW,OKTRA LTD,1011705161,1336.2,PO NO 11770002668,WC1V 7PB,Capital
FOOD STANDARDS AGENCY - Westminster,FOOD STANDARDS AGENCY - Westminster,2018-02-27,EXP - PURCHASE OF GOODS/SERVICES - RAIL TRAVEL,IT Information & Knowledge Management,REDFERN TRAVEL LTD,1011705242,1211,Travel and Subsistence Week 7,BD1 5HQ,ADMIN
FOOD STANDARDS AGENCY - Westminster,FOOD STANDARDS AGENCY - Westminster,2018-02-27,EXP - PURCHASE OF GOODS/SERVICES - RAIL TRAVEL,Organisational Development,REDFERN TRAVEL LTD,1011705242,1201.6,Travel and Subsistence Week 7,BD1 5HQ,ADMIN
FOOD STANDARDS AGENCY - Westminster,FOOD STANDARDS AGENCY - Westminster,2018-02-27,EXP - PURCHASE OF GOODS/SERVICES - SUBSISTENCE,Operational Delivery,REDFERN TRAVEL LTD,1011705242,1162.04,Travel and Subsistence Week 7,BD1 5HQ,PROGRAMME
FOOD STANDARDS AGENCY - Westminster,FOOD STANDARDS AGENCY - Westminster,2018-02-20,EXP - PURCHASE OF GOODS/SERVICES - SUBSISTENCE,Regulatory Delivery ,REDFERN TRAVEL LTD,1011705166,1122.77,Travel and Subsistence Week 6,BD1 5HQ,ADMIN
FOOD STANDARDS AGENCY - Westminster,FOOD STANDARDS AGENCY - Westminster,2018-02-14,EXP - PURCHASE OF GOODS/SERVICES - RAIL TRAVEL,IT Service Delivery,REDFERN TRAVEL LTD,1011705112,1099.6,Travel and Subsistence Week 5,BD1 5HQ,ADMIN
FOOD STANDARDS AGENCY - Westminster,FOOD STANDARDS AGENCY - Westminster,2018-02-07,EXP - PURCHASE OF GOODS/SERVICES -  FOREIGN AIR TRAVEL,Contaminants HoD,REDFERN TRAVEL LTD,1011705030,1093.41,Travel and Subsistence Week 4,BD1 5HQ,ADMIN
FOOD STANDARDS AGENCY - Westminster,FOOD STANDARDS AGENCY - Westminster,2018-02-20,EXP - PURCHASE OF GOODS/SERVICES - RAIL TRAVEL,Organisational Development,REDFERN TRAVEL LTD,1011705166,1080.8,Travel and Subsistence Week 6,BD1 5HQ,ADMIN
FOOD STANDARDS AGENCY - Westminster,FOOD STANDARDS AGENCY - Westminster,2018-02-20,EXP - PURCHASE OF GOODS/SERVICES - SUBSISTENCE,Wales and West 4 ,REDFERN TRAVEL LTD,1011705166,1049.53,Travel and Subsistence Week 6,BD1 5HQ,PROGRAMME
FOOD STANDARDS AGENCY - Westminster,FOOD STANDARDS AGENCY - Westminster,2018-02-20,EXP - PURCHASE OF GOODS/SERVICES - RAIL TRAVEL,IT Service Delivery,REDFERN TRAVEL LTD,1011705166,1041.9,Travel and Subsistence Week 6,BD1 5HQ,ADMIN
FOOD STANDARDS AGENCY - Westminster,FOOD STANDARDS AGENCY - Westminster,2018-02-14,EXP - PURCHASE OF GOODS/SERVICES - RAIL TRAVEL,Planning and Performance,REDFERN TRAVEL LTD,1011705112,1008.9,Travel and Subsistence Week 5,BD1 5HQ,ADMIN
FOOD STANDARDS AGENCY - Westminster,FOOD STANDARDS AGENCY - Westminster,2018-02-14,EXP - PURCHASE OF GOODS/SERVICES - SUBSISTENCE,Operations Assurance ,REDFERN TRAVEL LTD,1011705112,949.59,Travel and Subsistence Week 5,BD1 5HQ,PROGRAMME
FOOD STANDARDS AGENCY - Westminster,FOOD STANDARDS AGENCY - Westminster,2018-02-07,EXP - PURCHASE OF GOODS/SERVICES - RAIL TRAVEL,Regulating our Future,REDFERN TRAVEL LTD,1011705030,926.55,Travel and Subsistence Week 4,BD1 5HQ,ADMIN
FOOD STANDARDS AGENCY - Westminster,FOOD STANDARDS AGENCY - Westminster,2018-02-20,EXP - PURCHASE OF GOODS/SERVICES - SUBSISTENCE,Regulating our Future,REDFERN TRAVEL LTD,1011705166,907.4,Travel and Subsistence Week 6,BD1 5HQ,ADMIN
FOOD STANDARDS AGENCY - Westminster,FOOD STANDARDS AGENCY - Westminster,2018-02-14,EXP - PURCHASE OF GOODS/SERVICES - SUBSISTENCE,Regulatory Delivery ,REDFERN TRAVEL LTD,1011705112,889.86,Travel and Subsistence Week 5,BD1 5HQ,ADMIN
FOOD STANDARDS AGENCY - Westminster,FOOD STANDARDS AGENCY - Westminster,2018-02-20,EXP - PURCHASE OF GOODS/SERVICES -  FOREIGN AIR TRAVEL,Legal Branch A & Investigations,REDFERN TRAVEL LTD,1011705166,887.27,Travel and Subsistence Week 6,BD1 5HQ,ADMIN
FOOD STANDARDS AGENCY - Westminster,FOOD STANDARDS AGENCY - Westminster,2018-02-14,EXP - PURCHASE OF GOODS/SERVICES - RAIL TRAVEL,Comms Directors Office,REDFERN TRAVEL LTD,1011705112,875.9,Travel and Subsistence Week 5,BD1 5HQ,ADMIN
FOOD STANDARDS AGENCY - Westminster,FOOD STANDARDS AGENCY - Westminster,2018-02-14,EXP - PURCHASE OF GOODS/SERVICES - RAIL TRAVEL,IT Information & Knowledge Management,REDFERN TRAVEL LTD,1011705112,861.5,Travel and Subsistence Week 5,BD1 5HQ,ADMIN
FOOD STANDARDS AGENCY - Westminster,FOOD STANDARDS AGENCY - Westminster,2018-02-20,EXP - PURCHASE OF GOODS/SERVICES - RAIL TRAVEL,Comms Directors Office,REDFERN TRAVEL LTD,1011705166,854.55,Travel and Subsistence Week 6,BD1 5HQ,ADMIN
FOOD STANDARDS AGENCY - Westminster,FOOD STANDARDS AGENCY - Westminster,2018-02-14,EXP - PURCHASE OF GOODS/SERVICES - FOREIGN SUBSISTENCE,Regulatory & International,REDFERN TRAVEL LTD,1011705112,852.34,Travel and Subsistence Week 5,BD1 5HQ,ADMIN
FOOD STANDARDS AGENCY - Westminster,FOOD STANDARDS AGENCY - Westminster,2018-02-14,EXP - PURCHASE OF GOODS/SERVICES - RAIL TRAVEL,Corporate Support Unit,REDFERN TRAVEL LTD,1011705112,833.4,Travel and Subsistence Week 5,BD1 5HQ,ADMIN
FOOD STANDARDS AGENCY - Westminster,FOOD STANDARDS AGENCY - Westminster,2018-02-20,EXP - PURCHASE OF GOODS/SERVICES - SUBSISTENCE,Food Incidents & Resilience - Prog,REDFERN TRAVEL LTD,1011705166,833.35,Travel and Subsistence Week 6,BD1 5HQ,PROGRAMME
FOOD STANDARDS AGENCY - Westminster,FOOD STANDARDS AGENCY - Westminster,2018-02-14,EXP - PURCHASE OF GOODS/SERVICES - SUBSISTENCE,Legal Branch A & Investigations,REDFERN TRAVEL LTD,1011705112,825.1,Travel and Subsistence Week 5,BD1 5HQ,ADMIN
FOOD STANDARDS AGENCY - Westminster,FOOD STANDARDS AGENCY - Westminster,2018-02-14,EXP - PURCHASE OF GOODS/SERVICES - SUBSISTENCE,Operational Delivery,REDFERN TRAVEL LTD,1011705112,808.16,Travel and Subsistence Week 5,BD1 5HQ,PROGRAMME
FOOD STANDARDS AGENCY - Westminster,FOOD STANDARDS AGENCY - Westminster,2018-02-20,EXP - PURCHASE OF GOODS/SERVICES - RAIL TRAVEL,Food Incidents & Resilience - Prog,REDFERN TRAVEL LTD,1011705166,797.7,Travel and Subsistence Week 6,BD1 5HQ,PROGRAMME
FOOD STANDARDS AGENCY - Westminster,FOOD STANDARDS AGENCY - Westminster,2018-02-20,EXP - PURCHASE OF GOODS/SERVICES - AIR TRAVEL,Comms Directors Office,REDFERN TRAVEL LTD,1011705166,796.33,Travel and Subsistence Week 6,BD1 5HQ,ADMIN
FOOD STANDARDS AGENCY - Westminster,FOOD STANDARDS AGENCY - Westminster,2018-02-27,EXP - PURCHASE OF GOODS/SERVICES - RAIL TRAVEL,Finance Director & Branch,REDFERN TRAVEL LTD,1011705242,782,Travel and Subsistence Week 7,BD1 5HQ,ADMIN
FOOD STANDARDS AGENCY - Westminster,FOOD STANDARDS AGENCY - Westminster,2018-02-14,EXP - PURCHASE OF GOODS/SERVICES - SUBSISTENCE,Planning and Performance,REDFERN TRAVEL LTD,1011705112,773.35,Travel and Subsistence Week 5,BD1 5HQ,ADMIN
FOOD STANDARDS AGENCY - Westminster,FOOD STANDARDS AGENCY - Westminster,2018-02-20,EXP - PURCHASE OF GOODS/SERVICES - SUBSISTENCE,Non Meat Field Ops,REDFERN TRAVEL LTD,1011705166,772.23,Travel and Subsistence Week 6,BD1 5HQ,PROGRAMME
FOOD STANDARDS AGENCY - Westminster,FOOD STANDARDS AGENCY - Westminster,2018-02-14,EXP - PURCHASE OF GOODS/SERVICES - SUBSISTENCE,Organisational Development,REDFERN TRAVEL LTD,1011705112,758.5,Travel and Subsistence Week 5,BD1 5HQ,ADMIN
FOOD STANDARDS AGENCY - Westminster,FOOD STANDARDS AGENCY - Westminster,2018-02-14,EXP - PURCHASE OF GOODS/SERVICES - RAIL TRAVEL,Wales and West 4 ,REDFERN TRAVEL LTD,1011705112,749.2,Travel and Subsistence Week 5,BD1 5HQ,PROGRAMME
FOOD STANDARDS AGENCY - Westminster,FOOD STANDARDS AGENCY - Westminster,2018-02-20,EXP - PURCHASE OF GOODS/SERVICES - SUBSISTENCE,Organisational Development,REDFERN TRAVEL LTD,1011705166,733.07,Travel and Subsistence Week 6,BD1 5HQ,ADMIN
FOOD STANDARDS AGENCY - Westminster,FOOD STANDARDS AGENCY - Westminster,2018-02-07,EXP - PURCHASE OF GOODS/SERVICES - RAIL TRAVEL,Comms Directors Office,REDFERN TRAVEL LTD,1011705030,724.5,Travel and Subsistence Week 4,BD1 5HQ,ADMIN
FOOD STANDARDS AGENCY - Westminster,FOOD STANDARDS AGENCY - Westminster,2018-02-20,EXP - PURCHASE OF GOODS/SERVICES - RAIL TRAVEL,Regulatory & International,REDFERN TRAVEL LTD,1011705166,717.75,Travel and Subsistence Week 6,BD1 5HQ,ADMIN
FOOD STANDARDS AGENCY - Westminster,FOOD STANDARDS AGENCY - Westminster,2018-02-07,EXP - PURCHASE OF GOODS/SERVICES - RAIL TRAVEL,Finance Director & Branch,REDFERN TRAVEL LTD,1011705030,710.7,Travel and Subsistence Week 4,BD1 5HQ,ADMIN
FOOD STANDARDS AGENCY - Westminster,FOOD STANDARDS AGENCY - Westminster,2018-02-27,EXP - PURCHASE OF GOODS/SERVICES - SUBSISTENCE,Regulatory Delivery ,REDFERN TRAVEL LTD,1011705242,709.08,Travel and Subsistence Week 7,BD1 5HQ,ADMIN
FOOD STANDARDS AGENCY - Westminster,FOOD STANDARDS AGENCY - Westminster,2018-02-14,EXP - PURCHASE OF GOODS/SERVICES - RAIL TRAVEL,Chemical Risk Assessment Unit,REDFERN TRAVEL LTD,1011705112,667.45,Travel and Subsistence Week 5,BD1 5HQ,ADMIN
FOOD STANDARDS AGENCY - Westminster,FOOD STANDARDS AGENCY - Westminster,2018-02-07,EXP - PURCHASE OF GOODS/SERVICES - SUBSISTENCE,Internal Audit,REDFERN TRAVEL LTD,1011705030,663.13,Travel and Subsistence Week 4,BD1 5HQ,ADMIN
FOOD STANDARDS AGENCY - Westminster,FOOD STANDARDS AGENCY - Westminster,2018-02-14,EXP - PURCHASE OF GOODS/SERVICES - RAIL TRAVEL,Finance Director & Branch,REDFERN TRAVEL LTD,1011705112,652.9,Travel and Subsistence Week 5,BD1 5HQ,ADMIN
FOOD STANDARDS AGENCY - Westminster,FOOD STANDARDS AGENCY - Westminster,2018-02-20,EXP - PURCHASE OF GOODS/SERVICES - RAIL TRAVEL,Procurement,REDFERN TRAVEL LTD,1011705166,643,Travel and Subsistence Week 6,BD1 5HQ,ADMIN
FOOD STANDARDS AGENCY - Westminster,FOOD STANDARDS AGENCY - Westminster,2018-02-14,EXP - PURCHASE OF GOODS/SERVICES - SUBSISTENCE,Wales and West 4 ,REDFERN TRAVEL LTD,1011705112,623.58,Travel and Subsistence Week 5,BD1 5HQ,PROGRAMME
FOOD STANDARDS AGENCY - Westminster,FOOD STANDARDS AGENCY - Westminster,2018-02-20,EXP - PURCHASE OF GOODS/SERVICES - RAIL TRAVEL,Food Crime Unit - Prog,REDFERN TRAVEL LTD,1011705166,615.9,Travel and Subsistence Week 6,BD1 5HQ,PROGRAMME
FOOD STANDARDS AGENCY - Westminster,FOOD STANDARDS AGENCY - Westminster,2018-02-14,EXP - PURCHASE OF GOODS/SERVICES - RAIL TRAVEL,Legal Branch A & Investigations,REDFERN TRAVEL LTD,1011705112,596.8,Travel and Subsistence Week 5,BD1 5HQ,ADMIN
FOOD STANDARDS AGENCY - Westminster,FOOD STANDARDS AGENCY - Westminster,2018-02-07,EXP - PURCHASE OF GOODS/SERVICES - RAIL TRAVEL,Planning and Performance,REDFERN TRAVEL LTD,1011705030,594.4,Travel and Subsistence Week 4,BD1 5HQ,ADMIN
FOOD STANDARDS AGENCY - Westminster,FOOD STANDARDS AGENCY - Westminster,2018-02-20,EXP - PURCHASE OF GOODS/SERVICES - RAIL TRAVEL,Imports & Exports Team (Admin),REDFERN TRAVEL LTD,1011705166,585.4,Travel and Subsistence Week 6,BD1 5HQ,ADMIN
FOOD STANDARDS AGENCY - Westminster,FOOD STANDARDS AGENCY - Westminster,2018-02-07,EXP - PURCHASE OF GOODS/SERVICES - RAIL TRAVEL,EU Exit,REDFERN TRAVEL LTD,1011705030,577.6,Travel and Subsistence Week 4,BD1 5HQ,ADMIN
FOOD STANDARDS AGENCY - Westminster,FOOD STANDARDS AGENCY - Westminster,2018-02-14,EXP - PURCHASE OF GOODS/SERVICES - RAIL TRAVEL,EU Exit,REDFERN TRAVEL LTD,1011705112,561.7,Travel and Subsistence Week 5,BD1 5HQ,ADMIN
FOOD STANDARDS AGENCY - Westminster,FOOD STANDARDS AGENCY - Westminster,2018-02-20,EXP - PURCHASE OF GOODS/SERVICES - RAIL TRAVEL,Wales and West 3 ,REDFERN TRAVEL LTD,1011705166,556.7,Travel and Subsistence Week 6,BD1 5HQ,PROGRAMME
FOOD STANDARDS AGENCY - Westminster,FOOD STANDARDS AGENCY - Westminster,2018-02-14,EXP - PURCHASE OF GOODS/SERVICES - SUBSISTENCE,Contaminants HoD,REDFERN TRAVEL LTD,1011705112,549.16,Travel and Subsistence Week 5,BD1 5HQ,ADMIN
FOOD STANDARDS AGENCY - Westminster,FOOD STANDARDS AGENCY - Westminster,2018-02-27,EXP - PURCHASE OF GOODS/SERVICES - SUBSISTENCE,Chief Executive & Private Office,REDFERN TRAVEL LTD,1011705242,544.55,Travel and Subsistence Week 7,BD1 5HQ,ADMIN
FOOD STANDARDS AGENCY - Westminster,FOOD STANDARDS AGENCY - Westminster,2018-02-27,EXP - PURCHASE OF GOODS/SERVICES - SUBSISTENCE,Chemical Risk Assessment Unit,REDFERN TRAVEL LTD,1011705242,517.2,Travel and Subsistence Week 7,BD1 5HQ,ADMIN
FOOD STANDARDS AGENCY - Westminster,FOOD STANDARDS AGENCY - Westminster,2018-02-14,EXP - PURCHASE OF GOODS/SERVICES - SUBSISTENCE,Non Meat Field Ops,REDFERN TRAVEL LTD,1011705112,512.03,Travel and Subsistence Week 5,BD1 5HQ,PROGRAMME
FOOD STANDARDS AGENCY - Westminster,FOOD STANDARDS AGENCY - Westminster,2018-02-27,EXP - PURCHASE OF GOODS/SERVICES -  FOREIGN AIR TRAVEL,EU Regulatory Reform Branch,REDFERN TRAVEL LTD,1011705242,507.16,Travel and Subsistence Week 7,BD1 5HQ,ADMIN
FOOD STANDARDS AGENCY - Westminster,FOOD STANDARDS AGENCY - Westminster,2018-02-23,EXP - PURCHASE OF GOODS/SERV - SUPPORT - IT SUPPORT SERVICES,IT Service Delivery,LITTLE FISH UK LTD,1011705208,501,Monthly Training Service Charge Sept 17 - Mar 18,NG1 1LS,Admin
FOOD STANDARDS AGENCY - Westminster,FOOD STANDARDS AGENCY - Westminster,2018-02-23,EXP - PURCHASE OF GOODS/SERV - SUPPORT - IT SUPPORT SERVICES,IT Service Delivery,LITTLE FISH UK LTD,1011705208,501,Monthly Training Service Charge Sept 17 - Mar 18,NG1 1LS,Admin
FOOD STANDARDS AGENCY - Westminster,FOOD STANDARDS AGENCY - Westminster,2018-02-23,EXP - PURCHASE OF GOODS/SERV - SUPPORT - IT SUPPORT SERVICES,IT Service Delivery,LITTLE FISH UK LTD,1011705208,501,Monthly Training Service Charge Sept 17 - Mar 18,NG1 1LS,Admin
FOOD STANDARDS AGENCY - Westminster,FOOD STANDARDS AGENCY - Westminster,2018-02-14,EXP - PURCHASE OF GOODS/SERVICES - AIR TRAVEL,Regulating our Future,REDFERN TRAVEL LTD,1011705112,499.63,Travel and Subsistence Week 5,BD1 5HQ,ADMIN
FOOD STANDARDS AGENCY - Westminster,FOOD STANDARDS AGENCY - Westminster,2018-02-07,EXP - PURCHASE OF GOODS/SERVICES - AIR TRAVEL,Chief Scientist,REDFERN TRAVEL LTD,1011705030,475.1,Travel and Subsistence Week 4,BD1 5HQ,ADMIN
FOOD STANDARDS AGENCY - Westminster,FOOD STANDARDS AGENCY - Westminster,2018-02-27,EXP - PURCHASE OF GOODS/SERVICES - SUBSISTENCE,Regulatory & International,REDFERN TRAVEL LTD,1011705242,473.18,Travel and Subsistence Week 7,BD1 5HQ,ADMIN
FOOD STANDARDS AGENCY - Westminster,FOOD STANDARDS AGENCY - Westminster,2018-02-27,EXP - PURCHASE OF GOODS/SERVICES -  FOREIGN AIR TRAVEL,Regulatory & International,REDFERN TRAVEL LTD,1011705242,463.16,Travel and Subsistence Week 7,BD1 5HQ,ADMIN
FOOD STANDARDS AGENCY - Westminster,FOOD STANDARDS AGENCY - Westminster,2018-02-14,EXP - PURCHASE OF GOODS/SERVICES - RAIL TRAVEL,East 4,REDFERN TRAVEL LTD,1011705112,458.55,Travel and Subsistence Week 5,BD1 5HQ,PROGRAMME
FOOD STANDARDS AGENCY - Westminster,FOOD STANDARDS AGENCY - Westminster,2018-02-14,EXP - PURCHASE OF GOODS/SERVICES - RAIL TRAVEL,North 2,REDFERN TRAVEL LTD,1011705112,443.2,Travel and Subsistence Week 5,BD1 5HQ,PROGRAMME
FOOD STANDARDS AGENCY - Westminster,FOOD STANDARDS AGENCY - Westminster,2018-02-07,EXP - PURCHASE OF GOODS/SERVICES - RAIL TRAVEL,IT Information & Knowledge Management,REDFERN TRAVEL LTD,1011705030,437.2,Travel and Subsistence Week 4,BD1 5HQ,ADMIN
FOOD STANDARDS AGENCY - Westminster,FOOD STANDARDS AGENCY - Westminster,2018-02-07,EXP - PURCHASE OF GOODS/SERVICES - RAIL TRAVEL,IT Service Delivery,REDFERN TRAVEL LTD,1011705030,436.4,Travel and Subsistence Week 4,BD1 5HQ,ADMIN
FOOD STANDARDS AGENCY - Westminster,FOOD STANDARDS AGENCY - Westminster,2018-02-20,EXP - PURCHASE OF GOODS/SERVICES - RAIL TRAVEL,East 3,REDFERN TRAVEL LTD,1011705166,431.9,Travel and Subsistence Week 6,BD1 5HQ,PROGRAMME
FOOD STANDARDS AGENCY - Westminster,FOOD STANDARDS AGENCY - Westminster,2018-02-20,EXP - PURCHASE OF GOODS/SERVICES - RAIL TRAVEL,Chief Scientist,REDFERN TRAVEL LTD,1011705166,427,Travel and Subsistence Week 6,BD1 5HQ,ADMIN
FOOD STANDARDS AGENCY - Westminster,FOOD STANDARDS AGENCY - Westminster,2018-02-14,EXP - PURCHASE OF GOODS/SERVICES - AIR TRAVEL,Additives,REDFERN TRAVEL LTD,1011705112,421,Travel and Subsistence Week 5,BD1 5HQ,ADMIN
FOOD STANDARDS AGENCY - Westminster,FOOD STANDARDS AGENCY - Westminster,2018-02-27,EXP - PURCHASE OF GOODS/SERVICES - SUBSISTENCE,Regulating our Future,REDFERN TRAVEL LTD,1011705242,418.02,Travel and Subsistence Week 7,BD1 5HQ,ADMIN
FOOD STANDARDS AGENCY - Westminster,FOOD STANDARDS AGENCY - Westminster,2018-02-27,EXP - PURCHASE OF GOODS/SERVICES - RAIL TRAVEL,Food Incidents & Resilience - Prog,REDFERN TRAVEL LTD,1011705242,403.8,Travel and Subsistence Week 7,BD1 5HQ,PROGRAMME
FOOD STANDARDS AGENCY - Westminster,FOOD STANDARDS AGENCY - Westminster,2018-02-20,EXP - PURCHASE OF GOODS/SERVICES - AIR TRAVEL,Organisational Development,REDFERN TRAVEL LTD,1011705166,403.63,Travel and Subsistence Week 6,BD1 5HQ,ADMIN
FOOD STANDARDS AGENCY - Westminster,FOOD STANDARDS AGENCY - Westminster,2018-02-14,EXP - PURCHASE OF GOODS/SERVICES -  FOREIGN AIR TRAVEL,Allergens,REDFERN TRAVEL LTD,1011705112,401.82,Travel and Subsistence Week 5,BD1 5HQ,ADMIN
FOOD STANDARDS AGENCY - Westminster,FOOD STANDARDS AGENCY - Westminster,2018-02-27,EXP - PURCHASE OF GOODS/SERVICES - SUBSISTENCE,Resilience - Admin,REDFERN TRAVEL LTD,1011705242,399.43,Travel and Subsistence Week 7,BD1 5HQ,ADMIN
FOOD STANDARDS AGENCY - Westminster,FOOD STANDARDS AGENCY - Westminster,2018-02-27,EXP - PURCHASE OF GOODS/SERVICES - RAIL TRAVEL,Procurement,REDFERN TRAVEL LTD,1011705242,397,Travel and Subsistence Week 7,BD1 5HQ,ADMIN
FOOD STANDARDS AGENCY - Westminster,FOOD STANDARDS AGENCY - Westminster,2018-02-20,EXP - PURCHASE OF GOODS/SERVICES - RAIL TRAVEL,Finance Director & Branch,REDFERN TRAVEL LTD,1011705166,396.8,Travel and Subsistence Week 6,BD1 5HQ,ADMIN
FOOD STANDARDS AGENCY - Westminster,FOOD STANDARDS AGENCY - Westminster,2018-02-14,EXP - PURCHASE OF GOODS/SERVICES - SUBSISTENCE,Food Crime Unit - Prog,REDFERN TRAVEL LTD,1011705112,395.55,Travel and Subsistence Week 5,BD1 5HQ,PROGRAMME
FOOD STANDARDS AGENCY - Westminster,FOOD STANDARDS AGENCY - Westminster,2018-02-07,EXP - PURCHASE OF GOODS/SERVICES - RAIL TRAVEL,Regulatory & International,REDFERN TRAVEL LTD,1011705030,387,Travel and Subsistence Week 4,BD1 5HQ,ADMIN
FOOD STANDARDS AGENCY - Westminster,FOOD STANDARDS AGENCY - Westminster,2018-02-20,EXP - PURCHASE OF GOODS/SERVICES - RAIL TRAVEL,Wales and West 4 ,REDFERN TRAVEL LTD,1011705166,385.1,Travel and Subsistence Week 6,BD1 5HQ,PROGRAMME
FOOD STANDARDS AGENCY - Westminster,FOOD STANDARDS AGENCY - Westminster,2018-02-07,EXP - PURCHASE OF GOODS/SERVICES - RAIL TRAVEL,Food Incidents & Resilience - Prog,REDFERN TRAVEL LTD,1011705030,381.96,Travel and Subsistence Week 4,BD1 5HQ,PROGRAMME
FOOD STANDARDS AGENCY - Westminster,FOOD STANDARDS AGENCY - Westminster,2018-02-20,EXP - PURCHASE OF GOODS/SERVICES - SUBSISTENCE,Planning and Performance,REDFERN TRAVEL LTD,1011705166,376.8,Travel and Subsistence Week 6,BD1 5HQ,ADMIN
FOOD STANDARDS AGENCY - Westminster,FOOD STANDARDS AGENCY - Westminster,2018-02-20,EXP - PURCHASE OF GOODS/SERVICES - SUBSISTENCE,Chief Executive & Private Office,REDFERN TRAVEL LTD,1011705166,372.18,Travel and Subsistence Week 6,BD1 5HQ,ADMIN
FOOD STANDARDS AGENCY - Westminster,FOOD STANDARDS AGENCY - Westminster,2018-02-20,EXP - PURCHASE OF GOODS/SERVICES - AIR TRAVEL,Operations Assurance ,REDFERN TRAVEL LTD,1011705166,369.94,Travel and Subsistence Week 6,BD1 5HQ,PROGRAMME
FOOD STANDARDS AGENCY - Westminster,FOOD STANDARDS AGENCY - Westminster,2018-02-20,EXP - PURCHASE OF GOODS/SERVICES - RAIL TRAVEL,North 1,REDFERN TRAVEL LTD,1011705166,365.8,Travel and Subsistence Week 6,BD1 5HQ,PROGRAMME
FOOD STANDARDS AGENCY - Westminster,FOOD STANDARDS AGENCY - Westminster,2018-02-20,EXP - PURCHASE OF GOODS/SERVICES - RAIL TRAVEL,Digital,REDFERN TRAVEL LTD,1011705166,364.8,Travel and Subsistence Week 6,BD1 5HQ,ADMIN
FOOD STANDARDS AGENCY - Westminster,FOOD STANDARDS AGENCY - Westminster,2018-02-14,EXP - PURCHASE OF GOODS/SERVICES - RAIL TRAVEL,Chief Scientist,REDFERN TRAVEL LTD,1011705112,363,Travel and Subsistence Week 5,BD1 5HQ,ADMIN
FOOD STANDARDS AGENCY - Westminster,FOOD STANDARDS AGENCY - Westminster,2018-02-14,EXP - PURCHASE OF GOODS/SERVICES - RAIL TRAVEL,Regulatory & International,REDFERN TRAVEL LTD,1011705112,359.5,Travel and Subsistence Week 5,BD1 5HQ,ADMIN
FOOD STANDARDS AGENCY - Westminster,FOOD STANDARDS AGENCY - Westminster,2018-02-14,EXP - PURCHASE OF GOODS/SERVICES - AIR TRAVEL,Organisational Development,REDFERN TRAVEL LTD,1011705112,358.09,Travel and Subsistence Week 5,BD1 5HQ,ADMIN
FOOD STANDARDS AGENCY - Westminster,FOOD STANDARDS AGENCY - Westminster,2018-02-07,EXP - PURCHASE OF GOODS/SERVICES - SUBSISTENCE,IT Service Delivery,REDFERN TRAVEL LTD,1011705030,357.6,Travel and Subsistence Week 4,BD1 5HQ,ADMIN
FOOD STANDARDS AGENCY - Westminster,FOOD STANDARDS AGENCY - Westminster,2018-02-27,EXP - PURCHASE OF GOODS/SERVICES - AIR TRAVEL,Regulating our Future,REDFERN TRAVEL LTD,1011705242,352.94,Travel and Subsistence Week 7,BD1 5HQ,ADMIN
FOOD STANDARDS AGENCY - Westminster,FOOD STANDARDS AGENCY - Westminster,2018-02-07,EXP - PURCHASE OF GOODS/SERVICES - SUBSISTENCE,Planning and Performance,REDFERN TRAVEL LTD,1011705030,351.88,Travel and Subsistence Week 4,BD1 5HQ,ADMIN
FOOD STANDARDS AGENCY - Westminster,FOOD STANDARDS AGENCY - Westminster,2018-02-27,EXP - PURCHASE OF GOODS/SERVICES - RAIL TRAVEL,Legal Branch A & Investigations,REDFERN TRAVEL LTD,1011705242,347.25,Travel and Subsistence Week 7,BD1 5HQ,ADMIN
FOOD STANDARDS AGENCY - Westminster,FOOD STANDARDS AGENCY - Westminster,2018-02-20,EXP - PURCHASE OF GOODS/SERVICES - SUBSISTENCE,Additives,REDFERN TRAVEL LTD,1011705166,346.86,Travel and Subsistence Week 6,BD1 5HQ,ADMIN
FOOD STANDARDS AGENCY - Westminster,FOOD STANDARDS AGENCY - Westminster,2018-02-20,EXP - PURCHASE OF GOODS/SERVICES - SUBSISTENCE,IT Information & Knowledge Management,REDFERN TRAVEL LTD,1011705166,338.42,Travel and Subsistence Week 6,BD1 5HQ,ADMIN
FOOD STANDARDS AGENCY - Westminster,FOOD STANDARDS AGENCY - Westminster,2018-02-20,EXP - PURCHASE OF GOODS/SERVICES - SUBSISTENCE,Operations Assurance ,REDFERN TRAVEL LTD,1011705166,336.47,Travel and Subsistence Week 6,BD1 5HQ,PROGRAMME
FOOD STANDARDS AGENCY - Westminster,FOOD STANDARDS AGENCY - Westminster,2018-02-07,EXP - PURCHASE OF GOODS/SERVICES - SUBSISTENCE,Legal Branch A & Investigations,REDFERN TRAVEL LTD,1011705030,335.88,Travel and Subsistence Week 4,BD1 5HQ,ADMIN
FOOD STANDARDS AGENCY - Westminster,FOOD STANDARDS AGENCY - Westminster,2018-02-27,EXP - PURCHASE OF GOODS/SERVICES - AIR TRAVEL,Regulatory & International,REDFERN TRAVEL LTD,1011705242,334.16,Travel and Subsistence Week 7,BD1 5HQ,ADMIN
FOOD STANDARDS AGENCY - Westminster,FOOD STANDARDS AGENCY - Westminster,2018-02-14,EXP - PURCHASE OF GOODS/SERVICES - RAIL TRAVEL,Procurement,REDFERN TRAVEL LTD,1011705112,333.9,Travel and Subsistence Week 5,BD1 5HQ,ADMIN
FOOD STANDARDS AGENCY - Westminster,FOOD STANDARDS AGENCY - Westminster,2018-02-20,EXP - PURCHASE OF GOODS/SERVICES - SUBSISTENCE,Finance Director & Branch,REDFERN TRAVEL LTD,1011705166,333.63,Travel and Subsistence Week 6,BD1 5HQ,ADMIN
FOOD STANDARDS AGENCY - Westminster,FOOD STANDARDS AGENCY - Westminster,2018-02-20,EXP - PURCHASE OF GOODS/SERVICES - RAIL TRAVEL,IT Information & Knowledge Management,REDFERN TRAVEL LTD,1011705166,333.5,Travel and Subsistence Week 6,BD1 5HQ,ADMIN
FOOD STANDARDS AGENCY - Westminster,FOOD STANDARDS AGENCY - Westminster,2018-02-20,EXP - PURCHASE OF GOODS/SERVICES - RAIL TRAVEL,EU Exit,REDFERN TRAVEL LTD,1011705166,332.6,Travel and Subsistence Week 6,BD1 5HQ,ADMIN
FOOD STANDARDS AGENCY - Westminster,FOOD STANDARDS AGENCY - Westminster,2018-02-07,EXP - PURCHASE OF GOODS/SERVICES - RAIL TRAVEL,Non Meat Field Ops,REDFERN TRAVEL LTD,1011705030,331.15,Travel and Subsistence Week 4,BD1 5HQ,PROGRAMME
FOOD STANDARDS AGENCY - Westminster,FOOD STANDARDS AGENCY - Westminster,2018-02-27,EXP - PURCHASE OF GOODS/SERVICES - RAIL TRAVEL,Internal Audit,REDFERN TRAVEL LTD,1011705242,327.65,Travel and Subsistence Week 7,BD1 5HQ,ADMIN
FOOD STANDARDS AGENCY - Westminster,FOOD STANDARDS AGENCY - Westminster,2018-02-27,EXP - PURCHASE OF GOODS/SERVICES - RAIL TRAVEL,Chemical Risk Assessment Unit,REDFERN TRAVEL LTD,1011705242,322.75,Travel and Subsistence Week 7,BD1 5HQ,ADMIN
FOOD STANDARDS AGENCY - Westminster,FOOD STANDARDS AGENCY - Westminster,2018-02-14,EXP - PURCHASE OF GOODS/SERVICES - SUBSISTENCE,Food Crime Unit - Admin,REDFERN TRAVEL LTD,1011705112,322.45,Travel and Subsistence Week 5,BD1 5HQ,ADMIN
FOOD STANDARDS AGENCY - Westminster,FOOD STANDARDS AGENCY - Westminster,2018-02-27,EXP - PURCHASE OF GOODS/SERVICES - AIR TRAVEL,Operations Assurance ,REDFERN TRAVEL LTD,1011705242,316.66,Travel and Subsistence Week 7,BD1 5HQ,PROGRAMME
FOOD STANDARDS AGENCY - Westminster,FOOD STANDARDS AGENCY - Westminster,2018-02-27,EXP - PURCHASE OF GOODS/SERVICES - AIR TRAVEL,Regulatory Delivery ,REDFERN TRAVEL LTD,1011705242,315.98,Travel and Subsistence Week 7,BD1 5HQ,ADMIN
FOOD STANDARDS AGENCY - Westminster,FOOD STANDARDS AGENCY - Westminster,2018-02-14,EXP - PURCHASE OF GOODS/SERVICES - SUBSISTENCE,East 4,REDFERN TRAVEL LTD,1011705112,315.04,Travel and Subsistence Week 5,BD1 5HQ,PROGRAMME
FOOD STANDARDS AGENCY - Westminster,FOOD STANDARDS AGENCY - Westminster,2018-02-27,EXP - PURCHASE OF GOODS/SERVICES - RAIL TRAVEL,EU Exit,REDFERN TRAVEL LTD,1011705242,312.9,Travel and Subsistence Week 7,BD1 5HQ,ADMIN
FOOD STANDARDS AGENCY - Westminster,FOOD STANDARDS AGENCY - Westminster,2018-02-07,EXP - PURCHASE OF GOODS/SERVICES - SUBSISTENCE,Regulating our Future,REDFERN TRAVEL LTD,1011705030,305.9,Travel and Subsistence Week 4,BD1 5HQ,ADMIN
FOOD STANDARDS AGENCY - Westminster,FOOD STANDARDS AGENCY - Westminster,2018-02-20,EXP - PURCHASE OF GOODS/SERVICES - SUBSISTENCE,Internal Audit,REDFERN TRAVEL LTD,1011705166,303.13,Travel and Subsistence Week 6,BD1 5HQ,ADMIN
FOOD STANDARDS AGENCY - Westminster,FOOD STANDARDS AGENCY - Westminster,2018-02-07,EXP - PURCHASE OF GOODS/SERVICES - SUBSISTENCE,Operations Assurance ,REDFERN TRAVEL LTD,1011705030,299.04,Travel and Subsistence Week 4,BD1 5HQ,PROGRAMME
FOOD STANDARDS AGENCY - Westminster,FOOD STANDARDS AGENCY - Westminster,2018-02-12,EXP - PURCHASE OF GOODS/SERVICES ? SUPPORT,Finance Director & Branch,RINEDATA LTD,1011705058,297.5,Travel Costs 7 Days,NN8 4HB,Admin
FOOD STANDARDS AGENCY - Westminster,FOOD STANDARDS AGENCY - Westminster,2018-02-07,EXP - PURCHASE OF GOODS/SERVICES - FOREIGN SUBSISTENCE,Contaminants HoD,REDFERN TRAVEL LTD,1011705030,290.14,Travel and Subsistence Week 4,BD1 5HQ,ADMIN
FOOD STANDARDS AGENCY - Westminster,FOOD STANDARDS AGENCY - Westminster,2018-02-14,EXP - PURCHASE OF GOODS/SERVICES - RAIL TRAVEL,Non Meat Field Ops,REDFERN TRAVEL LTD,1011705112,286.9,Travel and Subsistence Week 5,BD1 5HQ,PROGRAMME
FOOD STANDARDS AGENCY - Westminster,FOOD STANDARDS AGENCY - Westminster,2018-02-27,EXP - PURCHASE OF GOODS/SERVICES - RAIL TRAVEL,North 1,REDFERN TRAVEL LTD,1011705242,286.9,Travel and Subsistence Week 7,BD1 5HQ,PROGRAMME
FOOD STANDARDS AGENCY - Westminster,FOOD STANDARDS AGENCY - Westminster,2018-02-20,EXP - PURCHASE OF GOODS/SERVICES - RAIL TRAVEL,Non Meat Field Ops,REDFERN TRAVEL LTD,1011705166,278.95,Travel and Subsistence Week 6,BD1 5HQ,PROGRAMME
FOOD STANDARDS AGENCY - Westminster,FOOD STANDARDS AGENCY - Westminster,2018-02-14,EXP - PURCHASE OF GOODS/SERVICES - SUBSISTENCE,Comms Directors Office,REDFERN TRAVEL LTD,1011705112,276.48,Travel and Subsistence Week 5,BD1 5HQ,ADMIN
FOOD STANDARDS AGENCY - Westminster,FOOD STANDARDS AGENCY - Westminster,2018-02-20,EXP - PURCHASE OF GOODS/SERVICES - AIR TRAVEL,EU Exit,REDFERN TRAVEL LTD,1011705166,275.93,Travel and Subsistence Week 6,BD1 5HQ,ADMIN
FOOD STANDARDS AGENCY - Westminster,FOOD STANDARDS AGENCY - Westminster,2018-02-07,EXP - PURCHASE OF GOODS/SERVICES - RAIL TRAVEL,Procurement,REDFERN TRAVEL LTD,1011705030,275.2,Travel and Subsistence Week 4,BD1 5HQ,ADMIN
FOOD STANDARDS AGENCY - Westminster,FOOD STANDARDS AGENCY - Westminster,2018-02-20,EXP - PURCHASE OF GOODS/SERVICES - RAIL TRAVEL,Legal Branch A & Investigations,REDFERN TRAVEL LTD,1011705166,266.5,Travel and Subsistence Week 6,BD1 5HQ,ADMIN
FOOD STANDARDS AGENCY - Westminster,FOOD STANDARDS AGENCY - Westminster,2018-02-20,EXP - PURCHASE OF GOODS/SERVICES - SUBSISTENCE,IT Service Delivery,REDFERN TRAVEL LTD,1011705166,266.3,Travel and Subsistence Week 6,BD1 5HQ,ADMIN
FOOD STANDARDS AGENCY - Westminster,FOOD STANDARDS AGENCY - Westminster,2018-02-14,EXP - PURCHASE OF GOODS/SERVICES - FOREIGN SUBSISTENCE,Allergens,REDFERN TRAVEL LTD,1011705112,263.18,Travel and Subsistence Week 5,BD1 5HQ,ADMIN
FOOD STANDARDS AGENCY - Westminster,FOOD STANDARDS AGENCY - Westminster,2018-02-07,EXP - PURCHASE OF GOODS/SERVICES - RAIL TRAVEL,Internal Audit,REDFERN TRAVEL LTD,1011705030,262.6,Travel and Subsistence Week 4,BD1 5HQ,ADMIN
FOOD STANDARDS AGENCY - Westminster,FOOD STANDARDS AGENCY - Westminster,2018-02-27,EXP - PURCHASE OF GOODS/SERVICES - RAIL TRAVEL,Chief Executive & Private Office,REDFERN TRAVEL LTD,1011705242,256.5,Travel and Subsistence Week 7,BD1 5HQ,ADMIN
FOOD STANDARDS AGENCY - Westminster,FOOD STANDARDS AGENCY - Westminster,2018-02-27,EXP - PURCHASE OF GOODS/SERVICES - SUBSISTENCE,Finance Director & Branch,REDFERN TRAVEL LTD,1011705242,251.3,Travel and Subsistence Week 7,BD1 5HQ,ADMIN
FOOD STANDARDS AGENCY - Westminster,FOOD STANDARDS AGENCY - Westminster,2018-02-27,EXP - PURCHASE OF GOODS/SERVICES - RAIL TRAVEL,IT Service Delivery,REDFERN TRAVEL LTD,1011705242,245.25,Travel and Subsistence Week 7,BD1 5HQ,ADMIN
FOOD STANDARDS AGENCY - Westminster,FOOD STANDARDS AGENCY - Westminster,2018-02-27,EXP - PURCHASE OF GOODS/SERVICES -  FOREIGN AIR TRAVEL,Contaminants Policy & Strategy Unit,REDFERN TRAVEL LTD,1011705242,243,Travel and Subsistence Week 7,BD1 5HQ,ADMIN
FOOD STANDARDS AGENCY - Westminster,FOOD STANDARDS AGENCY - Westminster,2018-02-14,EXP - PURCHASE OF GOODS/SERVICES - RAIL TRAVEL,East 1,REDFERN TRAVEL LTD,1011705112,239.5,Travel and Subsistence Week 5,BD1 5HQ,PROGRAMME
FOOD STANDARDS AGENCY - Westminster,FOOD STANDARDS AGENCY - Westminster,2018-02-07,EXP - PURCHASE OF GOODS/SERVICES - SUBSISTENCE,Programme and project delivery,REDFERN TRAVEL LTD,1011705030,238.6,Travel and Subsistence Week 4,BD1 5HQ,ADMIN
FOOD STANDARDS AGENCY - Westminster,FOOD STANDARDS AGENCY - Westminster,2018-02-14,EXP - PURCHASE OF GOODS/SERVICES - RAIL TRAVEL,Digital,REDFERN TRAVEL LTD,1011705112,237.1,Travel and Subsistence Week 5,BD1 5HQ,ADMIN
FOOD STANDARDS AGENCY - Westminster,FOOD STANDARDS AGENCY - Westminster,2018-02-27,EXP - PURCHASE OF GOODS/SERVICES - SUBSISTENCE,Organisational Development,REDFERN TRAVEL LTD,1011705242,226.95,Travel and Subsistence Week 7,BD1 5HQ,ADMIN
FOOD STANDARDS AGENCY - Westminster,FOOD STANDARDS AGENCY - Westminster,2018-02-27,EXP - PURCHASE OF GOODS/SERVICES - SUBSISTENCE,Animal Feed Branch,REDFERN TRAVEL LTD,1011705242,225.67,Travel and Subsistence Week 7,BD1 5HQ,ADMIN
FOOD STANDARDS AGENCY - Westminster,FOOD STANDARDS AGENCY - Westminster,2018-02-27,EXP - PURCHASE OF GOODS/SERVICES - RAIL TRAVEL,Planning and Performance,REDFERN TRAVEL LTD,1011705242,223,Travel and Subsistence Week 7,BD1 5HQ,ADMIN
FOOD STANDARDS AGENCY - Westminster,FOOD STANDARDS AGENCY - Westminster,2018-02-07,EXP - PURCHASE OF GOODS/SERVICES - SUBSISTENCE,EU Exit,REDFERN TRAVEL LTD,1011705030,219.95,Travel and Subsistence Week 4,BD1 5HQ,ADMIN
FOOD STANDARDS AGENCY - Westminster,FOOD STANDARDS AGENCY - Westminster,2018-02-14,EXP - PURCHASE OF GOODS/SERVICES - RAIL TRAVEL,Chief Executive & Private Office,REDFERN TRAVEL LTD,1011705112,219.4,Travel and Subsistence Week 5,BD1 5HQ,ADMIN
FOOD STANDARDS AGENCY - Westminster,FOOD STANDARDS AGENCY - Westminster,2018-02-20,EXP - PURCHASE OF GOODS/SERVICES - SUBSISTENCE,Wales and West 2 (Wales),REDFERN TRAVEL LTD,1011705166,219.28,Travel and Subsistence Week 6,BD1 5HQ,PROGRAMME
FOOD STANDARDS AGENCY - Westminster,FOOD STANDARDS AGENCY - Westminster,2018-02-14,EXP - PURCHASE OF GOODS/SERVICES - RAIL TRAVEL,Wales and West 1 (England),REDFERN TRAVEL LTD,1011705112,218.1,Travel and Subsistence Week 5,BD1 5HQ,PROGRAMME
FOOD STANDARDS AGENCY - Westminster,FOOD STANDARDS AGENCY - Westminster,2018-02-27,EXP - PURCHASE OF GOODS/SERVICES -  FOREIGN AIR TRAVEL,Imports & Exports Team (Admin),REDFERN TRAVEL LTD,1011705242,216,Travel and Subsistence Week 7,BD1 5HQ,ADMIN
FOOD STANDARDS AGENCY - Westminster,FOOD STANDARDS AGENCY - Westminster,2018-02-07,EXP - PURCHASE OF GOODS/SERVICES - RAIL TRAVEL,North 1,REDFERN TRAVEL LTD,1011705030,215.8,Travel and Subsistence Week 4,BD1 5HQ,PROGRAMME
FOOD STANDARDS AGENCY - Westminster,FOOD STANDARDS AGENCY - Westminster,2018-02-27,EXP - PURCHASE OF GOODS/SERVICES - RAIL TRAVEL,Wales and West 3 ,REDFERN TRAVEL LTD,1011705242,213,Travel and Subsistence Week 7,BD1 5HQ,PROGRAMME
FOOD STANDARDS AGENCY - Westminster,FOOD STANDARDS AGENCY - Westminster,2018-02-20,EXP - PURCHASE OF GOODS/SERVICES - RAIL TRAVEL,Corporate Support Unit,REDFERN TRAVEL LTD,1011705166,212.1,Travel and Subsistence Week 6,BD1 5HQ,ADMIN
FOOD STANDARDS AGENCY - Westminster,FOOD STANDARDS AGENCY - Westminster,2018-02-27,EXP - PURCHASE OF GOODS/SERVICES - SUBSISTENCE,North 1,REDFERN TRAVEL LTD,1011705242,209.95,Travel and Subsistence Week 7,BD1 5HQ,PROGRAMME
FOOD STANDARDS AGENCY - Westminster,FOOD STANDARDS AGENCY - Westminster,2018-02-27,EXP - PURCHASE OF GOODS/SERVICES - RAIL TRAVEL,Food Crime Unit - Admin,REDFERN TRAVEL LTD,1011705242,208.5,Travel and Subsistence Week 7,BD1 5HQ,ADMIN
FOOD STANDARDS AGENCY - Westminster,FOOD STANDARDS AGENCY - Westminster,2018-02-27,EXP - PURCHASE OF GOODS/SERVICES - SUBSISTENCE,IT Information & Knowledge Management,REDFERN TRAVEL LTD,1011705242,205.55,Travel and Subsistence Week 7,BD1 5HQ,ADMIN
FOOD STANDARDS AGENCY - Westminster,FOOD STANDARDS AGENCY - Westminster,2018-02-14,EXP - PURCHASE OF GOODS/SERVICES - FOREIGN SUBSISTENCE,Animal Feed Branch,REDFERN TRAVEL LTD,1011705112,204.32,Travel and Subsistence Week 5,BD1 5HQ,ADMIN
FOOD STANDARDS AGENCY - Westminster,FOOD STANDARDS AGENCY - Westminster,2018-02-07,EXP - PURCHASE OF GOODS/SERVICES - SUBSISTENCE,IT Information & Knowledge Management,REDFERN TRAVEL LTD,1011705030,204.2,Travel and Subsistence Week 4,BD1 5HQ,ADMIN
FOOD STANDARDS AGENCY - Westminster,FOOD STANDARDS AGENCY - Westminster,2018-02-27,EXP - PURCHASE OF GOODS/SERVICES - AIR TRAVEL,EU Exit,REDFERN TRAVEL LTD,1011705242,202.98,Travel and Subsistence Week 7,BD1 5HQ,ADMIN
FOOD STANDARDS AGENCY - Westminster,FOOD STANDARDS AGENCY - Westminster,2018-02-14,EXP - PURCHASE OF GOODS/SERVICES - SUBSISTENCE,Internal Audit,REDFERN TRAVEL LTD,1011705112,202.7,Travel and Subsistence Week 5,BD1 5HQ,ADMIN
FOOD STANDARDS AGENCY - Westminster,FOOD STANDARDS AGENCY - Westminster,2018-02-27,EXP - PURCHASE OF GOODS/SERVICES - RAIL TRAVEL,Chief Scientist,REDFERN TRAVEL LTD,1011705242,202,Travel and Subsistence Week 7,BD1 5HQ,ADMIN
FOOD STANDARDS AGENCY - Westminster,FOOD STANDARDS AGENCY - Westminster,2018-02-07,EXP - PURCHASE OF GOODS/SERVICES - RAIL TRAVEL,North 4,REDFERN TRAVEL LTD,1011705030,201,Travel and Subsistence Week 4,BD1 5HQ,PROGRAMME
FOOD STANDARDS AGENCY - Westminster,FOOD STANDARDS AGENCY - Westminster,2018-02-20,EXP - PURCHASE OF GOODS/SERVICES - SUBSISTENCE,Legal Branch A & Investigations,REDFERN TRAVEL LTD,1011705166,199.2,Travel and Subsistence Week 6,BD1 5HQ,ADMIN
FOOD STANDARDS AGENCY - Westminster,FOOD STANDARDS AGENCY - Westminster,2018-02-07,EXP - PURCHASE OF GOODS/SERVICES -  FOREIGN AIR TRAVEL,Chief Scientist,REDFERN TRAVEL LTD,1011705030,198,Travel and Subsistence Week 4,BD1 5HQ,ADMIN
FOOD STANDARDS AGENCY - Westminster,FOOD STANDARDS AGENCY - Westminster,2018-02-07,EXP - PURCHASE OF GOODS/SERVICES - AIR TRAVEL,Contaminants HoD,REDFERN TRAVEL LTD,1011705030,198,Travel and Subsistence Week 4,BD1 5HQ,ADMIN
FOOD STANDARDS AGENCY - Westminster,FOOD STANDARDS AGENCY - Westminster,2018-02-14,EXP - PURCHASE OF GOODS/SERVICES - RAIL TRAVEL,Food Crime Unit - Prog,REDFERN TRAVEL LTD,1011705112,198,Travel and Subsistence Week 5,BD1 5HQ,PROGRAMME
FOOD STANDARDS AGENCY - Westminster,FOOD STANDARDS AGENCY - Westminster,2018-02-14,EXP - PURCHASE OF GOODS/SERVICES - SUBSISTENCE,Chief Executive & Private Office,REDFERN TRAVEL LTD,1011705112,193.2,Travel and Subsistence Week 5,BD1 5HQ,ADMIN
FOOD STANDARDS AGENCY - Westminster,FOOD STANDARDS AGENCY - Westminster,2018-02-14,EXP - PURCHASE OF GOODS/SERVICES - AIR TRAVEL,EU Exit,REDFERN TRAVEL LTD,1011705112,193,Travel and Subsistence Week 5,BD1 5HQ,ADMIN
FOOD STANDARDS AGENCY - Westminster,FOOD STANDARDS AGENCY - Westminster,2018-02-14,EXP - PURCHASE OF GOODS/SERVICES -  FOREIGN AIR TRAVEL,EU Exit,REDFERN TRAVEL LTD,1011705112,193,Travel and Subsistence Week 5,BD1 5HQ,ADMIN
FOOD STANDARDS AGENCY - Westminster,FOOD STANDARDS AGENCY - Westminster,2018-02-07,EXP - PURCHASE OF GOODS/SERVICES - SUBSISTENCE,Non Meat Field Ops,REDFERN TRAVEL LTD,1011705030,192.6,Travel and Subsistence Week 4,BD1 5HQ,PROGRAMME
FOOD STANDARDS AGENCY - Westminster,FOOD STANDARDS AGENCY - Westminster,2018-02-14,EXP - PURCHASE OF GOODS/SERVICES - SUBSISTENCE,Wales and West 3 ,REDFERN TRAVEL LTD,1011705112,192.38,Travel and Subsistence Week 5,BD1 5HQ,PROGRAMME
FOOD STANDARDS AGENCY - Westminster,FOOD STANDARDS AGENCY - Westminster,2018-02-14,EXP - PURCHASE OF GOODS/SERVICES - FOREIGN SUBSISTENCE,Contaminants Policy & Strategy Unit,REDFERN TRAVEL LTD,1011705112,184.22,Travel and Subsistence Week 5,BD1 5HQ,ADMIN
FOOD STANDARDS AGENCY - Westminster,FOOD STANDARDS AGENCY - Westminster,2018-02-07,EXP - PURCHASE OF GOODS/SERVICES - AIR TRAVEL,Regulating our Future,REDFERN TRAVEL LTD,1011705030,183.6,Travel and Subsistence Week 4,BD1 5HQ,ADMIN
FOOD STANDARDS AGENCY - Westminster,FOOD STANDARDS AGENCY - Westminster,2018-02-07,EXP - PURCHASE OF GOODS/SERVICES - RAIL TRAVEL,EU Regulatory Reform Branch,REDFERN TRAVEL LTD,1011705030,183.6,Travel and Subsistence Week 4,BD1 5HQ,ADMIN
FOOD STANDARDS AGENCY - Westminster,FOOD STANDARDS AGENCY - Westminster,2018-02-27,EXP - PURCHASE OF GOODS/SERVICES - RAIL TRAVEL,Corporate Support Unit,REDFERN TRAVEL LTD,1011705242,182,Travel and Subsistence Week 7,BD1 5HQ,ADMIN
FOOD STANDARDS AGENCY - Westminster,FOOD STANDARDS AGENCY - Westminster,2018-02-14,EXP - PURCHASE OF GOODS/SERVICES - FOREIGN SUBSISTENCE,Scientific Methods & Laboratory Policy,REDFERN TRAVEL LTD,1011705112,180.35,Travel and Subsistence Week 5,BD1 5HQ,ADMIN
FOOD STANDARDS AGENCY - Westminster,FOOD STANDARDS AGENCY - Westminster,2018-02-14,EXP - PURCHASE OF GOODS/SERVICES -  FOREIGN AIR TRAVEL,Operations Assurance ,REDFERN TRAVEL LTD,1011705112,180.16,Travel and Subsistence Week 5,BD1 5HQ,PROGRAMME
FOOD STANDARDS AGENCY - Westminster,FOOD STANDARDS AGENCY - Westminster,2018-02-27,EXP - PURCHASE OF GOODS/SERVICES - RAIL TRAVEL,Contaminants HoD,REDFERN TRAVEL LTD,1011705242,179.4,Travel and Subsistence Week 7,BD1 5HQ,ADMIN
FOOD STANDARDS AGENCY - Westminster,FOOD STANDARDS AGENCY - Westminster,2018-02-14,EXP - PURCHASE OF GOODS/SERVICES -  FOREIGN AIR TRAVEL,Food Hygiene Policy Branch,REDFERN TRAVEL LTD,1011705112,178,Travel and Subsistence Week 5,BD1 5HQ,ADMIN
FOOD STANDARDS AGENCY - Westminster,FOOD STANDARDS AGENCY - Westminster,2018-02-07,EXP - PURCHASE OF GOODS/SERVICES - SUBSISTENCE,Imports & Exports Team (Admin),REDFERN TRAVEL LTD,1011705030,175.7,Travel and Subsistence Week 4,BD1 5HQ,ADMIN
FOOD STANDARDS AGENCY - Westminster,FOOD STANDARDS AGENCY - Westminster,2018-02-07,EXP - PURCHASE OF GOODS/SERVICES - SUBSISTENCE,EU Regulatory Reform Branch,REDFERN TRAVEL LTD,1011705030,173.6,Travel and Subsistence Week 4,BD1 5HQ,ADMIN
FOOD STANDARDS AGENCY - Westminster,FOOD STANDARDS AGENCY - Westminster,2018-02-27,EXP - PURCHASE OF GOODS/SERVICES - SUBSISTENCE,Comms Directors Office,REDFERN TRAVEL LTD,1011705242,172.7,Travel and Subsistence Week 7,BD1 5HQ,ADMIN
FOOD STANDARDS AGENCY - Westminster,FOOD STANDARDS AGENCY - Westminster,2018-02-27,EXP - PURCHASE OF GOODS/SERVICES - RAIL TRAVEL,North 4,REDFERN TRAVEL LTD,1011705242,171.2,Travel and Subsistence Week 7,BD1 5HQ,PROGRAMME
FOOD STANDARDS AGENCY - Westminster,FOOD STANDARDS AGENCY - Westminster,2018-02-07,EXP - PURCHASE OF GOODS/SERVICES - RAIL TRAVEL,Food Crime Unit - Admin,REDFERN TRAVEL LTD,1011705030,170.5,Travel and Subsistence Week 4,BD1 5HQ,ADMIN
FOOD STANDARDS AGENCY - Westminster,FOOD STANDARDS AGENCY - Westminster,2018-02-14,EXP - PURCHASE OF GOODS/SERVICES - RAIL TRAVEL,Wales and West 3 ,REDFERN TRAVEL LTD,1011705112,170.1,Travel and Subsistence Week 5,BD1 5HQ,PROGRAMME
FOOD STANDARDS AGENCY - Westminster,FOOD STANDARDS AGENCY - Westminster,2018-02-27,EXP - PURCHASE OF GOODS/SERVICES - OTHER TRAVEL,Regulatory Delivery ,REDFERN TRAVEL LTD,1011705242,166.96,Travel and Subsistence Week 7,BD1 5HQ,ADMIN
FOOD STANDARDS AGENCY - Westminster,FOOD STANDARDS AGENCY - Westminster,2018-02-20,EXP - PURCHASE OF GOODS/SERVICES - RAIL TRAVEL,Wales and West 1 (Wales),REDFERN TRAVEL LTD,1011705166,165.8,Travel and Subsistence Week 6,BD1 5HQ,PROGRAMME
FOOD STANDARDS AGENCY - Westminster,FOOD STANDARDS AGENCY - Westminster,2018-02-07,EXP - PURCHASE OF GOODS/SERVICES - RAIL TRAVEL,Programme and project delivery,REDFERN TRAVEL LTD,1011705030,161.9,Travel and Subsistence Week 4,BD1 5HQ,ADMIN
FOOD STANDARDS AGENCY - Westminster,FOOD STANDARDS AGENCY - Westminster,2018-02-27,EXP - PURCHASE OF GOODS/SERVICES - AIR TRAVEL,Operational Delivery,REDFERN TRAVEL LTD,1011705242,159.34,Travel and Subsistence Week 7,BD1 5HQ,PROGRAMME
FOOD STANDARDS AGENCY - Westminster,FOOD STANDARDS AGENCY - Westminster,2018-02-27,EXP - PURCHASE OF GOODS/SERVICES - RAIL TRAVEL,East 3,REDFERN TRAVEL LTD,1011705242,158.9,Travel and Subsistence Week 7,BD1 5HQ,PROGRAMME
FOOD STANDARDS AGENCY - Westminster,FOOD STANDARDS AGENCY - Westminster,2018-02-20,EXP - PURCHASE OF GOODS/SERVICES - RAIL TRAVEL,Planning and Performance,REDFERN TRAVEL LTD,1011705166,156.7,Travel and Subsistence Week 6,BD1 5HQ,ADMIN
FOOD STANDARDS AGENCY - Westminster,FOOD STANDARDS AGENCY - Westminster,2018-02-27,EXP - PURCHASE OF GOODS/SERVICES - RAIL TRAVEL,East 4,REDFERN TRAVEL LTD,1011705242,155.2,Travel and Subsistence Week 7,BD1 5HQ,PROGRAMME
FOOD STANDARDS AGENCY - Westminster,FOOD STANDARDS AGENCY - Westminster,2018-02-07,EXP - PURCHASE OF GOODS/SERVICES - RAIL TRAVEL,Digital,REDFERN TRAVEL LTD,1011705030,154.9,Travel and Subsistence Week 4,BD1 5HQ,ADMIN
FOOD STANDARDS AGENCY - Westminster,FOOD STANDARDS AGENCY - Westminster,2018-02-14,EXP - PURCHASE OF GOODS/SERVICES - RAIL TRAVEL,East 3,REDFERN TRAVEL LTD,1011705112,154.5,Travel and Subsistence Week 5,BD1 5HQ,PROGRAMME
FOOD STANDARDS AGENCY - Westminster,FOOD STANDARDS AGENCY - Westminster,2018-02-27,EXP - PURCHASE OF GOODS/SERVICES - AIR TRAVEL,IT Information & Knowledge Management,REDFERN TRAVEL LTD,1011705242,153.7,Travel and Subsistence Week 7,BD1 5HQ,ADMIN
FOOD STANDARDS AGENCY - Westminster,FOOD STANDARDS AGENCY - Westminster,2018-02-14,EXP - PURCHASE OF GOODS/SERVICES - SUBSISTENCE,East 2,REDFERN TRAVEL LTD,1011705112,151.2,Travel and Subsistence Week 5,BD1 5HQ,PROGRAMME
FOOD STANDARDS AGENCY - Westminster,FOOD STANDARDS AGENCY - Westminster,2018-02-14,EXP - PURCHASE OF GOODS/SERVICES - FOREIGN SUBSISTENCE,Food Production Branch,REDFERN TRAVEL LTD,1011705112,149.83,Travel and Subsistence Week 5,BD1 5HQ,ADMIN
FOOD STANDARDS AGENCY - Westminster,FOOD STANDARDS AGENCY - Westminster,2018-02-07,EXP - PURCHASE OF GOODS/SERVICES - AIR TRAVEL,Imports & Exports Team (Admin),REDFERN TRAVEL LTD,1011705030,148,Travel and Subsistence Week 4,BD1 5HQ,ADMIN
FOOD STANDARDS AGENCY - Westminster,FOOD STANDARDS AGENCY - Westminster,2018-02-07,EXP - PURCHASE OF GOODS/SERVICES - SUBSISTENCE,Animal Feed Branch,REDFERN TRAVEL LTD,1011705030,146.86,Travel and Subsistence Week 4,BD1 5HQ,ADMIN
FOOD STANDARDS AGENCY - Westminster,FOOD STANDARDS AGENCY - Westminster,2018-02-14,EXP - PURCHASE OF GOODS/SERVICES - RAIL TRAVEL,Analysis & Research Branch,REDFERN TRAVEL LTD,1011705112,144.8,Travel and Subsistence Week 5,BD1 5HQ,ADMIN
FOOD STANDARDS AGENCY - Westminster,FOOD STANDARDS AGENCY - Westminster,2018-02-14,EXP - PURCHASE OF GOODS/SERVICES - RAIL TRAVEL,"Employee Relations, Systems and Data",REDFERN TRAVEL LTD,1011705112,143.8,Travel and Subsistence Week 5,BD1 5HQ,ADMIN
FOOD STANDARDS AGENCY - Westminster,FOOD STANDARDS AGENCY - Westminster,2018-02-07,EXP - PURCHASE OF GOODS/SERVICES - AIR TRAVEL,Regulatory & International,REDFERN TRAVEL LTD,1011705030,143,Travel and Subsistence Week 4,BD1 5HQ,ADMIN
FOOD STANDARDS AGENCY - Westminster,FOOD STANDARDS AGENCY - Westminster,2018-02-07,EXP - PURCHASE OF GOODS/SERVICES - RAIL TRAVEL,North 3,REDFERN TRAVEL LTD,1011705030,140.8,Travel and Subsistence Week 4,BD1 5HQ,PROGRAMME
FOOD STANDARDS AGENCY - Westminster,FOOD STANDARDS AGENCY - Westminster,2018-02-27,EXP - PURCHASE OF GOODS/SERVICES - RAIL TRAVEL,Regulatory & International,REDFERN TRAVEL LTD,1011705242,140,Travel and Subsistence Week 7,BD1 5HQ,ADMIN
FOOD STANDARDS AGENCY - Westminster,FOOD STANDARDS AGENCY - Westminster,2018-02-07,EXP - PURCHASE OF GOODS/SERVICES - SUBSISTENCE,East 3,REDFERN TRAVEL LTD,1011705030,139.82,Travel and Subsistence Week 4,BD1 5HQ,PROGRAMME
FOOD STANDARDS AGENCY - Westminster,FOOD STANDARDS AGENCY - Westminster,2018-02-14,EXP - PURCHASE OF GOODS/SERVICES - AIR TRAVEL,Regulatory Delivery ,REDFERN TRAVEL LTD,1011705112,138.17,Travel and Subsistence Week 5,BD1 5HQ,ADMIN
FOOD STANDARDS AGENCY - Westminster,FOOD STANDARDS AGENCY - Westminster,2018-02-14,EXP - PURCHASE OF GOODS/SERVICES - SUBSISTENCE,Animal Feed Branch,REDFERN TRAVEL LTD,1011705112,137.69,Travel and Subsistence Week 5,BD1 5HQ,ADMIN
FOOD STANDARDS AGENCY - Westminster,FOOD STANDARDS AGENCY - Westminster,2018-02-14,EXP - PURCHASE OF GOODS/SERVICES - FOREIGN SUBSISTENCE,Additives,REDFERN TRAVEL LTD,1011705112,137.68,Travel and Subsistence Week 5,BD1 5HQ,ADMIN
FOOD STANDARDS AGENCY - Westminster,FOOD STANDARDS AGENCY - Westminster,2018-02-20,EXP - PURCHASE OF GOODS/SERVICES - RAIL TRAVEL,EU Regulatory Reform Branch,REDFERN TRAVEL LTD,1011705166,135.3,Travel and Subsistence Week 6,BD1 5HQ,ADMIN
FOOD STANDARDS AGENCY - Westminster,FOOD STANDARDS AGENCY - Westminster,2018-02-20,EXP - PURCHASE OF GOODS/SERVICES - FOREIGN SUBSISTENCE,Animal Feed Branch,REDFERN TRAVEL LTD,1011705166,134.9,Travel and Subsistence Week 6,BD1 5HQ,ADMIN
FOOD STANDARDS AGENCY - Westminster,FOOD STANDARDS AGENCY - Westminster,2018-02-07,EXP - PURCHASE OF GOODS/SERVICES -  FOREIGN AIR TRAVEL,Animal Feed Branch,REDFERN TRAVEL LTD,1011705030,133,Travel and Subsistence Week 4,BD1 5HQ,ADMIN
FOOD STANDARDS AGENCY - Westminster,FOOD STANDARDS AGENCY - Westminster,2018-02-07,EXP - PURCHASE OF GOODS/SERVICES - RAIL TRAVEL,Wales and West 2 (England),REDFERN TRAVEL LTD,1011705030,131.05,Travel and Subsistence Week 4,BD1 5HQ,PROGRAMME
FOOD STANDARDS AGENCY - Westminster,FOOD STANDARDS AGENCY - Westminster,2018-02-20,EXP - PURCHASE OF GOODS/SERVICES - RAIL TRAVEL,Wales and West 2 (England),REDFERN TRAVEL LTD,1011705166,130.7,Travel and Subsistence Week 6,BD1 5HQ,PROGRAMME
FOOD STANDARDS AGENCY - Westminster,FOOD STANDARDS AGENCY - Westminster,2018-02-27,EXP - PURCHASE OF GOODS/SERVICES - RAIL TRAVEL,Wales and West 1 (England),REDFERN TRAVEL LTD,1011705242,130,Travel and Subsistence Week 7,BD1 5HQ,PROGRAMME
FOOD STANDARDS AGENCY - Westminster,FOOD STANDARDS AGENCY - Westminster,2018-02-20,EXP - PURCHASE OF GOODS/SERVICES - RAIL TRAVEL,Contaminants HoD,REDFERN TRAVEL LTD,1011705166,129.85,Travel and Subsistence Week 6,BD1 5HQ,ADMIN
FOOD STANDARDS AGENCY - Westminster,FOOD STANDARDS AGENCY - Westminster,2018-02-27,EXP - PURCHASE OF GOODS/SERVICES - SUBSISTENCE,IT Service Delivery,REDFERN TRAVEL LTD,1011705242,129.15,Travel and Subsistence Week 7,BD1 5HQ,ADMIN
FOOD STANDARDS AGENCY - Westminster,FOOD STANDARDS AGENCY - Westminster,2018-02-07,EXP - PURCHASE OF GOODS/SERVICES - RAIL TRAVEL,Corporate Support Unit,REDFERN TRAVEL LTD,1011705030,128.4,Travel and Subsistence Week 4,BD1 5HQ,ADMIN
FOOD STANDARDS AGENCY - Westminster,FOOD STANDARDS AGENCY - Westminster,2018-02-27,EXP - PURCHASE OF GOODS/SERVICES - RAIL TRAVEL,East 2,REDFERN TRAVEL LTD,1011705242,125.7,Travel and Subsistence Week 7,BD1 5HQ,PROGRAMME
FOOD STANDARDS AGENCY - Westminster,FOOD STANDARDS AGENCY - Westminster,2018-02-14,EXP - PURCHASE OF GOODS/SERVICES - SUBSISTENCE,Digital,REDFERN TRAVEL LTD,1011705112,125.6,Travel and Subsistence Week 5,BD1 5HQ,ADMIN
FOOD STANDARDS AGENCY - Westminster,FOOD STANDARDS AGENCY - Westminster,2018-02-07,EXP - PURCHASE OF GOODS/SERVICES -  FOREIGN AIR TRAVEL,Imports & Exports Team (Admin),REDFERN TRAVEL LTD,1011705030,123,Travel and Subsistence Week 4,BD1 5HQ,ADMIN
FOOD STANDARDS AGENCY - Westminster,FOOD STANDARDS AGENCY - Westminster,2018-02-07,EXP - PURCHASE OF GOODS/SERVICES - SUBSISTENCE,Food Incidents & Resilience - Prog,REDFERN TRAVEL LTD,1011705030,122.85,Travel and Subsistence Week 4,BD1 5HQ,PROGRAMME
FOOD STANDARDS AGENCY - Westminster,FOOD STANDARDS AGENCY - Westminster,2018-02-20,EXP - PURCHASE OF GOODS/SERVICES -  FOREIGN AIR TRAVEL,Regulatory & International,REDFERN TRAVEL LTD,1011705166,122.55,Travel and Subsistence Week 6,BD1 5HQ,ADMIN
FOOD STANDARDS AGENCY - Westminster,FOOD STANDARDS AGENCY - Westminster,2018-02-20,EXP - PURCHASE OF GOODS/SERVICES - SUBSISTENCE,Digital,REDFERN TRAVEL LTD,1011705166,120.2,Travel and Subsistence Week 6,BD1 5HQ,ADMIN
FOOD STANDARDS AGENCY - Westminster,FOOD STANDARDS AGENCY - Westminster,2018-02-20,EXP - PURCHASE OF GOODS/SERVICES - SUBSISTENCE,Regulatory & International,REDFERN TRAVEL LTD,1011705166,117.6,Travel and Subsistence Week 6,BD1 5HQ,ADMIN
FOOD STANDARDS AGENCY - Westminster,FOOD STANDARDS AGENCY - Westminster,2018-02-27,EXP - PURCHASE OF GOODS/SERVICES - SUBSISTENCE,EU Exit,REDFERN TRAVEL LTD,1011705242,117.35,Travel and Subsistence Week 7,BD1 5HQ,ADMIN
FOOD STANDARDS AGENCY - Westminster,FOOD STANDARDS AGENCY - Westminster,2018-02-27,EXP - PURCHASE OF GOODS/SERVICES - RAIL TRAVEL,Non Meat Field Ops,REDFERN TRAVEL LTD,1011705242,116.2,Travel and Subsistence Week 7,BD1 5HQ,PROGRAMME
FOOD STANDARDS AGENCY - Westminster,FOOD STANDARDS AGENCY - Westminster,2018-02-07,EXP - PURCHASE OF GOODS/SERVICES - AIR TRAVEL,Organisational Development,REDFERN TRAVEL LTD,1011705030,114.03,Travel and Subsistence Week 4,BD1 5HQ,ADMIN
FOOD STANDARDS AGENCY - Westminster,FOOD STANDARDS AGENCY - Westminster,2018-02-14,EXP - PURCHASE OF GOODS/SERVICES -  FOREIGN AIR TRAVEL,Scientific Methods & Laboratory Policy,REDFERN TRAVEL LTD,1011705112,113.7,Travel and Subsistence Week 5,BD1 5HQ,ADMIN
FOOD STANDARDS AGENCY - Westminster,FOOD STANDARDS AGENCY - Westminster,2018-02-07,EXP - PURCHASE OF GOODS/SERVICES - AIR TRAVEL,Internal Audit,REDFERN TRAVEL LTD,1011705030,113.52,Travel and Subsistence Week 4,BD1 5HQ,ADMIN
FOOD STANDARDS AGENCY - Westminster,FOOD STANDARDS AGENCY - Westminster,2018-02-20,EXP - PURCHASE OF GOODS/SERVICES - OTHER TRAVEL,Organisational Development,REDFERN TRAVEL LTD,1011705166,110.89,Travel and Subsistence Week 6,BD1 5HQ,ADMIN
FOOD STANDARDS AGENCY - Westminster,FOOD STANDARDS AGENCY - Westminster,2018-02-07,EXP - PURCHASE OF GOODS/SERVICES - SUBSISTENCE,Contaminants HoD,REDFERN TRAVEL LTD,1011705030,110.13,Travel and Subsistence Week 4,BD1 5HQ,ADMIN
FOOD STANDARDS AGENCY - Westminster,FOOD STANDARDS AGENCY - Westminster,2018-02-07,EXP - PURCHASE OF GOODS/SERVICES - SUBSISTENCE,Corporate Support Unit,REDFERN TRAVEL LTD,1011705030,109.53,Travel and Subsistence Week 4,BD1 5HQ,ADMIN
FOOD STANDARDS AGENCY - Westminster,FOOD STANDARDS AGENCY - Westminster,2018-02-20,EXP - PURCHASE OF GOODS/SERVICES - SUBSISTENCE,Corporate Support Unit,REDFERN TRAVEL LTD,1011705166,109.53,Travel and Subsistence Week 6,BD1 5HQ,ADMIN
FOOD STANDARDS AGENCY - Westminster,FOOD STANDARDS AGENCY - Westminster,2018-02-14,EXP - PURCHASE OF GOODS/SERVICES - RAIL TRAVEL,Food Incidents & Resilience - Prog,REDFERN TRAVEL LTD,1011705112,109.5,Travel and Subsistence Week 5,BD1 5HQ,PROGRAMME
FOOD STANDARDS AGENCY - Westminster,FOOD STANDARDS AGENCY - Westminster,2018-02-20,EXP - PURCHASE OF GOODS/SERVICES - SUBSISTENCE,Wales and West 3 ,REDFERN TRAVEL LTD,1011705166,109.1,Travel and Subsistence Week 6,BD1 5HQ,PROGRAMME
FOOD STANDARDS AGENCY - Westminster,FOOD STANDARDS AGENCY - Westminster,2018-02-27,EXP - PURCHASE OF GOODS/SERVICES - RAIL TRAVEL,Allergens,REDFERN TRAVEL LTD,1011705242,108.55,Travel and Subsistence Week 7,BD1 5HQ,ADMIN
FOOD STANDARDS AGENCY - Westminster,FOOD STANDARDS AGENCY - Westminster,2018-02-20,EXP - PURCHASE OF GOODS/SERVICES - RAIL TRAVEL,IT Strategy,REDFERN TRAVEL LTD,1011705166,108,Travel and Subsistence Week 6,BD1 5HQ,ADMIN
FOOD STANDARDS AGENCY - Westminster,FOOD STANDARDS AGENCY - Westminster,2018-02-20,EXP - PURCHASE OF GOODS/SERVICES - FOREIGN RAIL TRAVEL,Scientific Methods & Laboratory Policy,REDFERN TRAVEL LTD,1011705166,107.32,Travel and Subsistence Week 6,BD1 5HQ,ADMIN
FOOD STANDARDS AGENCY - Westminster,FOOD STANDARDS AGENCY - Westminster,2018-02-14,EXP - PURCHASE OF GOODS/SERVICES - SUBSISTENCE,Wales and West 1 (England),REDFERN TRAVEL LTD,1011705112,106.7,Travel and Subsistence Week 5,BD1 5HQ,PROGRAMME
FOOD STANDARDS AGENCY - Westminster,FOOD STANDARDS AGENCY - Westminster,2018-02-20,EXP - PURCHASE OF GOODS/SERVICES - RAIL TRAVEL,Additives,REDFERN TRAVEL LTD,1011705166,105.5,Travel and Subsistence Week 6,BD1 5HQ,ADMIN
FOOD STANDARDS AGENCY - Westminster,FOOD STANDARDS AGENCY - Westminster,2018-02-27,EXP - PURCHASE OF GOODS/SERVICES - SUBSISTENCE,Procurement,REDFERN TRAVEL LTD,1011705242,105.1,Travel and Subsistence Week 7,BD1 5HQ,ADMIN
FOOD STANDARDS AGENCY - Westminster,FOOD STANDARDS AGENCY - Westminster,2018-02-07,EXP - PURCHASE OF GOODS/SERVICES - RAIL TRAVEL,Animal Feed Branch,REDFERN TRAVEL LTD,1011705030,104.7,Travel and Subsistence Week 4,BD1 5HQ,ADMIN
FOOD STANDARDS AGENCY - Westminster,FOOD STANDARDS AGENCY - Westminster,2018-02-14,EXP - PURCHASE OF GOODS/SERVICES - SUBSISTENCE,Procurement,REDFERN TRAVEL LTD,1011705112,103.6,Travel and Subsistence Week 5,BD1 5HQ,ADMIN
FOOD STANDARDS AGENCY - Westminster,FOOD STANDARDS AGENCY - Westminster,2018-02-14,EXP - PURCHASE OF GOODS/SERVICES -  FOREIGN AIR TRAVEL,EU Regulatory Reform Branch,REDFERN TRAVEL LTD,1011705112,103,Travel and Subsistence Week 5,BD1 5HQ,ADMIN
FOOD STANDARDS AGENCY - Westminster,FOOD STANDARDS AGENCY - Westminster,2018-02-20,EXP - PURCHASE OF GOODS/SERVICES - RAIL TRAVEL,North 2,REDFERN TRAVEL LTD,1011705166,102.5,Travel and Subsistence Week 6,BD1 5HQ,PROGRAMME
FOOD STANDARDS AGENCY - Westminster,FOOD STANDARDS AGENCY - Westminster,2018-02-27,EXP - PURCHASE OF GOODS/SERVICES - RAIL TRAVEL,Imports & Exports Team (Admin),REDFERN TRAVEL LTD,1011705242,102.35,Travel and Subsistence Week 7,BD1 5HQ,ADMIN
FOOD STANDARDS AGENCY - Westminster,FOOD STANDARDS AGENCY - Westminster,2018-02-27,EXP - PURCHASE OF GOODS/SERVICES -  FOREIGN AIR TRAVEL,Scientific Methods & Laboratory Policy,REDFERN TRAVEL LTD,1011705242,101.98,Travel and Subsistence Week 7,BD1 5HQ,ADMIN
FOOD STANDARDS AGENCY - Westminster,FOOD STANDARDS AGENCY - Westminster,2018-02-07,EXP - PURCHASE OF GOODS/SERVICES - SUBSISTENCE,Organisational Development,REDFERN TRAVEL LTD,1011705030,101.6,Travel and Subsistence Week 4,BD1 5HQ,ADMIN
FOOD STANDARDS AGENCY - Westminster,FOOD STANDARDS AGENCY - Westminster,2018-02-07,EXP - PURCHASE OF GOODS/SERVICES - SUBSISTENCE,Wales and West 2 (England),REDFERN TRAVEL LTD,1011705030,101.13,Travel and Subsistence Week 4,BD1 5HQ,PROGRAMME
FOOD STANDARDS AGENCY - Westminster,FOOD STANDARDS AGENCY - Westminster,2018-02-14,EXP - PURCHASE OF GOODS/SERVICES - OTHER TRAVEL,Food Incidents & Resilience - Prog,REDFERN TRAVEL LTD,1011705112,100.98,Travel and Subsistence Week 5,BD1 5HQ,PROGRAMME
FOOD STANDARDS AGENCY - Westminster,FOOD STANDARDS AGENCY - Westminster,2018-02-27,EXP - PURCHASE OF GOODS/SERVICES - SUBSISTENCE,Wales and West 2 (Wales),REDFERN TRAVEL LTD,1011705242,100.35,Travel and Subsistence Week 7,BD1 5HQ,PROGRAMME
FOOD STANDARDS AGENCY - Westminster,FOOD STANDARDS AGENCY - Westminster,2018-02-14,EXP - PURCHASE OF GOODS/SERVICES - RAIL TRAVEL,Contaminants Policy & Strategy Unit,REDFERN TRAVEL LTD,1011705112,99.1,Travel and Subsistence Week 5,BD1 5HQ,ADMIN
FOOD STANDARDS AGENCY - Westminster,FOOD STANDARDS AGENCY - Westminster,2018-02-07,EXP - PURCHASE OF GOODS/SERVICES -  FOREIGN AIR TRAVEL,Scientific Methods & Laboratory Policy,REDFERN TRAVEL LTD,1011705030,99,Travel and Subsistence Week 4,BD1 5HQ,ADMIN
FOOD STANDARDS AGENCY - Westminster,FOOD STANDARDS AGENCY - Westminster,2018-02-27,EXP - PURCHASE OF GOODS/SERVICES - AIR TRAVEL,Additives,REDFERN TRAVEL LTD,1011705242,99,Travel and Subsistence Week 7,BD1 5HQ,ADMIN
FOOD STANDARDS AGENCY - Westminster,FOOD STANDARDS AGENCY - Westminster,2018-02-07,EXP - PURCHASE OF GOODS/SERVICES - SUBSISTENCE,Comms Directors Office,REDFERN TRAVEL LTD,1011705030,97.1,Travel and Subsistence Week 4,BD1 5HQ,ADMIN
FOOD STANDARDS AGENCY - Westminster,FOOD STANDARDS AGENCY - Westminster,2018-02-07,EXP - PURCHASE OF GOODS/SERVICES - AIR TRAVEL,Chief Executive & Private Office,REDFERN TRAVEL LTD,1011705030,96.7,Travel and Subsistence Week 4,BD1 5HQ,ADMIN
FOOD STANDARDS AGENCY - Westminster,FOOD STANDARDS AGENCY - Westminster,2018-02-27,EXP - PURCHASE OF GOODS/SERVICES - SUBSISTENCE,Wales and West 3 ,REDFERN TRAVEL LTD,1011705242,92.6,Travel and Subsistence Week 7,BD1 5HQ,PROGRAMME
FOOD STANDARDS AGENCY - Westminster,FOOD STANDARDS AGENCY - Westminster,2018-02-14,EXP - PURCHASE OF GOODS/SERVICES - SUBSISTENCE,Finance Director & Branch,REDFERN TRAVEL LTD,1011705112,89.2,Travel and Subsistence Week 5,BD1 5HQ,ADMIN
FOOD STANDARDS AGENCY - Westminster,FOOD STANDARDS AGENCY - Westminster,2018-02-27,EXP - PURCHASE OF GOODS/SERVICES - RAIL TRAVEL,Animal Feed Branch,REDFERN TRAVEL LTD,1011705242,87.6,Travel and Subsistence Week 7,BD1 5HQ,ADMIN
FOOD STANDARDS AGENCY - Westminster,FOOD STANDARDS AGENCY - Westminster,2018-02-14,EXP - PURCHASE OF GOODS/SERVICES - SUBSISTENCE,IT Service Delivery,REDFERN TRAVEL LTD,1011705112,87.33,Travel and Subsistence Week 5,BD1 5HQ,ADMIN
FOOD STANDARDS AGENCY - Westminster,FOOD STANDARDS AGENCY - Westminster,2018-02-27,EXP - PURCHASE OF GOODS/SERVICES -  FOREIGN AIR TRAVEL,Food Crime Unit - Admin,REDFERN TRAVEL LTD,1011705242,87.3,Travel and Subsistence Week 7,BD1 5HQ,ADMIN
FOOD STANDARDS AGENCY - Westminster,FOOD STANDARDS AGENCY - Westminster,2018-02-14,EXP - PURCHASE OF GOODS/SERVICES - RAIL TRAVEL,Wales and West 1 (Wales),REDFERN TRAVEL LTD,1011705112,87,Travel and Subsistence Week 5,BD1 5HQ,PROGRAMME
FOOD STANDARDS AGENCY - Westminster,FOOD STANDARDS AGENCY - Westminster,2018-02-07,EXP - PURCHASE OF GOODS/SERVICES - SUBSISTENCE,Food Crime Unit - Prog,REDFERN TRAVEL LTD,1011705030,85.6,Travel and Subsistence Week 4,BD1 5HQ,PROGRAMME
FOOD STANDARDS AGENCY - Westminster,FOOD STANDARDS AGENCY - Westminster,2018-02-27,EXP - PURCHASE OF GOODS/SERVICES - RAIL TRAVEL,Resilience - Admin,REDFERN TRAVEL LTD,1011705242,85.4,Travel and Subsistence Week 7,BD1 5HQ,ADMIN
FOOD STANDARDS AGENCY - Westminster,FOOD STANDARDS AGENCY - Westminster,2018-02-14,EXP - PURCHASE OF GOODS/SERVICES - SUBSISTENCE,Regulatory & International,REDFERN TRAVEL LTD,1011705112,83.04,Travel and Subsistence Week 5,BD1 5HQ,ADMIN
FOOD STANDARDS AGENCY - Westminster,FOOD STANDARDS AGENCY - Westminster,2018-02-27,EXP - PURCHASE OF GOODS/SERVICES - RAIL TRAVEL,Wales and West 1 (Wales),REDFERN TRAVEL LTD,1011705242,82.2,Travel and Subsistence Week 7,BD1 5HQ,PROGRAMME
FOOD STANDARDS AGENCY - Westminster,FOOD STANDARDS AGENCY - Westminster,2018-02-07,EXP - PURCHASE OF GOODS/SERVICES - SUBSISTENCE,Contaminants Policy & Strategy Unit,REDFERN TRAVEL LTD,1011705030,81.59,Travel and Subsistence Week 4,BD1 5HQ,ADMIN
FOOD STANDARDS AGENCY - Westminster,FOOD STANDARDS AGENCY - Westminster,2018-02-14,EXP - PURCHASE OF GOODS/SERVICES - RAIL TRAVEL,East 2,REDFERN TRAVEL LTD,1011705112,81.4,Travel and Subsistence Week 5,BD1 5HQ,PROGRAMME
FOOD STANDARDS AGENCY - Westminster,FOOD STANDARDS AGENCY - Westminster,2018-02-27,EXP - PURCHASE OF GOODS/SERVICES - SUBSISTENCE,IT Strategy,REDFERN TRAVEL LTD,1011705242,80.33,Travel and Subsistence Week 7,BD1 5HQ,ADMIN
FOOD STANDARDS AGENCY - Westminster,FOOD STANDARDS AGENCY - Westminster,2018-02-20,EXP - PURCHASE OF GOODS/SERVICES - RAIL TRAVEL,Food Crime Unit - Admin,REDFERN TRAVEL LTD,1011705166,80,Travel and Subsistence Week 6,BD1 5HQ,ADMIN
FOOD STANDARDS AGENCY - Westminster,FOOD STANDARDS AGENCY - Westminster,2018-02-14,EXP - PURCHASE OF GOODS/SERVICES - OTHER TRAVEL,NI Food Safety,REDFERN TRAVEL LTD,1011705112,79.85,Travel and Subsistence Week 5,BD1 5HQ,ADMIN
FOOD STANDARDS AGENCY - Westminster,FOOD STANDARDS AGENCY - Westminster,2018-02-14,EXP - PURCHASE OF GOODS/SERVICES - SUBSISTENCE,Additives,REDFERN TRAVEL LTD,1011705112,79.8,Travel and Subsistence Week 5,BD1 5HQ,ADMIN
FOOD STANDARDS AGENCY - Westminster,FOOD STANDARDS AGENCY - Westminster,2018-02-27,EXP - PURCHASE OF GOODS/SERVICES - SUBSISTENCE,Imports & Exports Team (Admin),REDFERN TRAVEL LTD,1011705242,78.6,Travel and Subsistence Week 7,BD1 5HQ,ADMIN
FOOD STANDARDS AGENCY - Westminster,FOOD STANDARDS AGENCY - Westminster,2018-02-20,EXP - PURCHASE OF GOODS/SERVICES - RAIL TRAVEL,East 1,REDFERN TRAVEL LTD,1011705166,76.5,Travel and Subsistence Week 6,BD1 5HQ,PROGRAMME
FOOD STANDARDS AGENCY - Westminster,FOOD STANDARDS AGENCY - Westminster,2018-02-20,EXP - PURCHASE OF GOODS/SERVICES - RAIL TRAVEL,Chief Executive & Private Office,REDFERN TRAVEL LTD,1011705166,75.6,Travel and Subsistence Week 6,BD1 5HQ,ADMIN
FOOD STANDARDS AGENCY - Westminster,FOOD STANDARDS AGENCY - Westminster,2018-02-20,EXP - PURCHASE OF GOODS/SERVICES - RAIL TRAVEL,East 2,REDFERN TRAVEL LTD,1011705166,73.95,Travel and Subsistence Week 6,BD1 5HQ,PROGRAMME
FOOD STANDARDS AGENCY - Westminster,FOOD STANDARDS AGENCY - Westminster,2018-02-20,EXP - PURCHASE OF GOODS/SERVICES - RAIL TRAVEL,Allergens,REDFERN TRAVEL LTD,1011705166,72,Travel and Subsistence Week 6,BD1 5HQ,ADMIN
FOOD STANDARDS AGENCY - Westminster,FOOD STANDARDS AGENCY - Westminster,2018-02-07,EXP - PURCHASE OF GOODS/SERVICES - SUBSISTENCE,IT Strategy,REDFERN TRAVEL LTD,1011705030,71.88,Travel and Subsistence Week 4,BD1 5HQ,ADMIN
FOOD STANDARDS AGENCY - Westminster,FOOD STANDARDS AGENCY - Westminster,2018-02-07,EXP - PURCHASE OF GOODS/SERVICES - AIR TRAVEL,Comms Directors Office,REDFERN TRAVEL LTD,1011705030,71.26,Travel and Subsistence Week 4,BD1 5HQ,ADMIN
FOOD STANDARDS AGENCY - Westminster,FOOD STANDARDS AGENCY - Westminster,2018-02-07,EXP - PURCHASE OF GOODS/SERVICES - SUBSISTENCE,Wales and West 4 ,REDFERN TRAVEL LTD,1011705030,70.5,Travel and Subsistence Week 4,BD1 5HQ,PROGRAMME
FOOD STANDARDS AGENCY - Westminster,FOOD STANDARDS AGENCY - Westminster,2018-02-14,EXP - PURCHASE OF GOODS/SERVICES - RAIL TRAVEL,Imports & Exports Team (Admin),REDFERN TRAVEL LTD,1011705112,70.4,Travel and Subsistence Week 5,BD1 5HQ,ADMIN
FOOD STANDARDS AGENCY - Westminster,FOOD STANDARDS AGENCY - Westminster,2018-02-27,EXP - PURCHASE OF GOODS/SERVICES - RAIL TRAVEL,IT Strategy,REDFERN TRAVEL LTD,1011705242,70.1,Travel and Subsistence Week 7,BD1 5HQ,ADMIN
FOOD STANDARDS AGENCY - Westminster,FOOD STANDARDS AGENCY - Westminster,2018-02-20,EXP - PURCHASE OF GOODS/SERVICES - SUBSISTENCE,North 4,REDFERN TRAVEL LTD,1011705166,69.33,Travel and Subsistence Week 6,BD1 5HQ,PROGRAMME
FOOD STANDARDS AGENCY - Westminster,FOOD STANDARDS AGENCY - Westminster,2018-02-20,EXP - PURCHASE OF GOODS/SERVICES - SUBSISTENCE,Wales and West 2 (England),REDFERN TRAVEL LTD,1011705166,68.1,Travel and Subsistence Week 6,BD1 5HQ,PROGRAMME
FOOD STANDARDS AGENCY - Westminster,FOOD STANDARDS AGENCY - Westminster,2018-02-14,EXP - PURCHASE OF GOODS/SERVICES - RAIL TRAVEL,Microbiological Food Safety Branch,REDFERN TRAVEL LTD,1011705112,66.9,Travel and Subsistence Week 5,BD1 5HQ,ADMIN
FOOD STANDARDS AGENCY - Westminster,FOOD STANDARDS AGENCY - Westminster,2018-02-14,EXP - PURCHASE OF GOODS/SERVICES - RAIL TRAVEL,EU Regulatory Reform Branch,REDFERN TRAVEL LTD,1011705112,66.5,Travel and Subsistence Week 5,BD1 5HQ,ADMIN
FOOD STANDARDS AGENCY - Westminster,FOOD STANDARDS AGENCY - Westminster,2018-02-27,EXP - PURCHASE OF GOODS/SERVICES - AIR TRAVEL,EU Regulatory Reform Branch,REDFERN TRAVEL LTD,1011705242,66.43,Travel and Subsistence Week 7,BD1 5HQ,ADMIN
FOOD STANDARDS AGENCY - Westminster,FOOD STANDARDS AGENCY - Westminster,2018-02-07,EXP - PURCHASE OF GOODS/SERVICES - RAIL TRAVEL,East 4,REDFERN TRAVEL LTD,1011705030,65.8,Travel and Subsistence Week 4,BD1 5HQ,PROGRAMME
FOOD STANDARDS AGENCY - Westminster,FOOD STANDARDS AGENCY - Westminster,2018-02-20,EXP - PURCHASE OF GOODS/SERVICES - RAIL TRAVEL,Wales and West 2 (Wales),REDFERN TRAVEL LTD,1011705166,65.55,Travel and Subsistence Week 6,BD1 5HQ,PROGRAMME
FOOD STANDARDS AGENCY - Westminster,FOOD STANDARDS AGENCY - Westminster,2018-02-14,EXP - PURCHASE OF GOODS/SERVICES - AIR TRAVEL,Operations Assurance ,REDFERN TRAVEL LTD,1011705112,64.64,Travel and Subsistence Week 5,BD1 5HQ,PROGRAMME
FOOD STANDARDS AGENCY - Westminster,FOOD STANDARDS AGENCY - Westminster,2018-02-27,EXP - PURCHASE OF GOODS/SERVICES - SUBSISTENCE,East 4,REDFERN TRAVEL LTD,1011705242,64.6,Travel and Subsistence Week 7,BD1 5HQ,PROGRAMME
FOOD STANDARDS AGENCY - Westminster,FOOD STANDARDS AGENCY - Westminster,2018-02-27,EXP - PURCHASE OF GOODS/SERVICES - RAIL TRAVEL,Digital,REDFERN TRAVEL LTD,1011705242,62.3,Travel and Subsistence Week 7,BD1 5HQ,ADMIN
FOOD STANDARDS AGENCY - Westminster,FOOD STANDARDS AGENCY - Westminster,2018-02-07,EXP - PURCHASE OF GOODS/SERVICES - SUBSISTENCE,Wales and West 3 ,REDFERN TRAVEL LTD,1011705030,58.92,Travel and Subsistence Week 4,BD1 5HQ,PROGRAMME
FOOD STANDARDS AGENCY - Westminster,FOOD STANDARDS AGENCY - Westminster,2018-02-07,EXP - PURCHASE OF GOODS/SERVICES - RAIL TRAVEL,East 3,REDFERN TRAVEL LTD,1011705030,58.1,Travel and Subsistence Week 4,BD1 5HQ,PROGRAMME
FOOD STANDARDS AGENCY - Westminster,FOOD STANDARDS AGENCY - Westminster,2018-02-14,EXP - PURCHASE OF GOODS/SERVICES - RAIL TRAVEL,Internal Audit,REDFERN TRAVEL LTD,1011705112,53.8,Travel and Subsistence Week 5,BD1 5HQ,ADMIN
FOOD STANDARDS AGENCY - Westminster,FOOD STANDARDS AGENCY - Westminster,2018-02-14,EXP - PURCHASE OF GOODS/SERVICES - RAIL TRAVEL,Wales and West 2 (England),REDFERN TRAVEL LTD,1011705112,53.8,Travel and Subsistence Week 5,BD1 5HQ,PROGRAMME
FOOD STANDARDS AGENCY - Westminster,FOOD STANDARDS AGENCY - Westminster,2018-02-07,EXP - PURCHASE OF GOODS/SERVICES - RAIL TRAVEL,Imports & Exports Team (Admin),REDFERN TRAVEL LTD,1011705030,52.2,Travel and Subsistence Week 4,BD1 5HQ,ADMIN
FOOD STANDARDS AGENCY - Westminster,FOOD STANDARDS AGENCY - Westminster,2018-02-20,EXP - PURCHASE OF GOODS/SERVICES - RAIL TRAVEL,Contaminants Policy & Strategy Unit,REDFERN TRAVEL LTD,1011705166,51.85,Travel and Subsistence Week 6,BD1 5HQ,ADMIN
FOOD STANDARDS AGENCY - Westminster,FOOD STANDARDS AGENCY - Westminster,2018-02-20,EXP - PURCHASE OF GOODS/SERVICES - RAIL TRAVEL,Scientific Methods & Laboratory Policy,REDFERN TRAVEL LTD,1011705166,50,Travel and Subsistence Week 6,BD1 5HQ,ADMIN
FOOD STANDARDS AGENCY - Westminster,FOOD STANDARDS AGENCY - Westminster,2018-02-20,EXP - PURCHASE OF GOODS/SERVICES - SUBSISTENCE,North 1,REDFERN TRAVEL LTD,1011705166,46.6,Travel and Subsistence Week 6,BD1 5HQ,PROGRAMME
FOOD STANDARDS AGENCY - Westminster,FOOD STANDARDS AGENCY - Westminster,2018-02-14,EXP - PURCHASE OF GOODS/SERVICES - RAIL TRAVEL,Animal Feed Branch,REDFERN TRAVEL LTD,1011705112,45.6,Travel and Subsistence Week 5,BD1 5HQ,ADMIN
FOOD STANDARDS AGENCY - Westminster,FOOD STANDARDS AGENCY - Westminster,2018-02-20,EXP - PURCHASE OF GOODS/SERVICES - RAIL TRAVEL,Wales and West 1 (England),REDFERN TRAVEL LTD,1011705166,45.6,Travel and Subsistence Week 6,BD1 5HQ,PROGRAMME
FOOD STANDARDS AGENCY - Westminster,FOOD STANDARDS AGENCY - Westminster,2018-02-14,EXP - PURCHASE OF GOODS/SERVICES - TAXI SERVICES,Regulatory Delivery ,REDFERN TRAVEL LTD,1011705112,45.21,Travel and Subsistence Week 5,BD1 5HQ,ADMIN
FOOD STANDARDS AGENCY - Westminster,FOOD STANDARDS AGENCY - Westminster,2018-02-07,EXP - PURCHASE OF GOODS/SERVICES - OTHER TRAVEL,Operations Assurance ,REDFERN TRAVEL LTD,1011705030,44.95,Travel and Subsistence Week 4,BD1 5HQ,PROGRAMME
FOOD STANDARDS AGENCY - Westminster,FOOD STANDARDS AGENCY - Westminster,2018-02-20,EXP - PURCHASE OF GOODS/SERVICES - SUBSISTENCE,Procurement,REDFERN TRAVEL LTD,1011705166,43.53,Travel and Subsistence Week 6,BD1 5HQ,ADMIN
FOOD STANDARDS AGENCY - Westminster,FOOD STANDARDS AGENCY - Westminster,2018-02-27,EXP - PURCHASE OF GOODS/SERVICES - RAIL TRAVEL,EU Regulatory Reform Branch,REDFERN TRAVEL LTD,1011705242,43.35,Travel and Subsistence Week 7,BD1 5HQ,ADMIN
FOOD STANDARDS AGENCY - Westminster,FOOD STANDARDS AGENCY - Westminster,2018-02-14,EXP - PURCHASE OF GOODS/SERVICES - RAIL TRAVEL,Food Crime Unit - Admin,REDFERN TRAVEL LTD,1011705112,42.5,Travel and Subsistence Week 5,BD1 5HQ,ADMIN
FOOD STANDARDS AGENCY - Westminster,FOOD STANDARDS AGENCY - Westminster,2018-02-07,EXP - PURCHASE OF GOODS/SERVICES - RAIL TRAVEL,Surveillance,REDFERN TRAVEL LTD,1011705030,42,Travel and Subsistence Week 4,BD1 5HQ,ADMIN
FOOD STANDARDS AGENCY - Westminster,FOOD STANDARDS AGENCY - Westminster,2018-02-14,EXP - PURCHASE OF GOODS/SERVICES - TAXI SERVICES,Operations Assurance ,REDFERN TRAVEL LTD,1011705112,41.48,Travel and Subsistence Week 5,BD1 5HQ,PROGRAMME
FOOD STANDARDS AGENCY - Westminster,FOOD STANDARDS AGENCY - Westminster,2018-02-14,EXP - PURCHASE OF GOODS/SERVICES - SUBSISTENCE,North 4,REDFERN TRAVEL LTD,1011705112,41.22,Travel and Subsistence Week 5,BD1 5HQ,PROGRAMME
FOOD STANDARDS AGENCY - Westminster,FOOD STANDARDS AGENCY - Westminster,2018-02-07,EXP - PURCHASE OF GOODS/SERVICES - RAIL TRAVEL,North 2,REDFERN TRAVEL LTD,1011705030,41.1,Travel and Subsistence Week 4,BD1 5HQ,PROGRAMME
FOOD STANDARDS AGENCY - Westminster,FOOD STANDARDS AGENCY - Westminster,2018-02-27,EXP - PURCHASE OF GOODS/SERVICES - RAIL TRAVEL,Analysis & Research Branch,REDFERN TRAVEL LTD,1011705242,41.1,Travel and Subsistence Week 7,BD1 5HQ,ADMIN
FOOD STANDARDS AGENCY - Westminster,FOOD STANDARDS AGENCY - Westminster,2018-02-07,EXP - PURCHASE OF GOODS/SERVICES - RAIL TRAVEL,Resilience - Admin,REDFERN TRAVEL LTD,1011705030,40,Travel and Subsistence Week 4,BD1 5HQ,ADMIN
FOOD STANDARDS AGENCY - Westminster,FOOD STANDARDS AGENCY - Westminster,2018-02-14,EXP - PURCHASE OF GOODS/SERVICES - RAIL TRAVEL,Resilience - Admin,REDFERN TRAVEL LTD,1011705112,40,Travel and Subsistence Week 5,BD1 5HQ,ADMIN
FOOD STANDARDS AGENCY - Westminster,FOOD STANDARDS AGENCY - Westminster,2018-02-20,EXP - PURCHASE OF GOODS/SERVICES - AIR TRAVEL,Regulatory & International,REDFERN TRAVEL LTD,1011705166,39.98,Travel and Subsistence Week 6,BD1 5HQ,ADMIN
FOOD STANDARDS AGENCY - Westminster,FOOD STANDARDS AGENCY - Westminster,2018-02-07,EXP - PURCHASE OF GOODS/SERVICES - RAIL TRAVEL,Allergens,REDFERN TRAVEL LTD,1011705030,39.3,Travel and Subsistence Week 4,BD1 5HQ,ADMIN
FOOD STANDARDS AGENCY - Westminster,FOOD STANDARDS AGENCY - Westminster,2018-02-07,EXP - PURCHASE OF GOODS/SERVICES - SUBSISTENCE,North 1,REDFERN TRAVEL LTD,1011705030,39.12,Travel and Subsistence Week 4,BD1 5HQ,PROGRAMME
FOOD STANDARDS AGENCY - Westminster,FOOD STANDARDS AGENCY - Westminster,2018-02-14,EXP - PURCHASE OF GOODS/SERVICES - OTHER TRAVEL,Organisational Development,REDFERN TRAVEL LTD,1011705112,38.99,Travel and Subsistence Week 5,BD1 5HQ,ADMIN
FOOD STANDARDS AGENCY - Westminster,FOOD STANDARDS AGENCY - Westminster,2018-02-27,EXP - PURCHASE OF GOODS/SERVICES - OTHER TRAVEL,Organisational Development,REDFERN TRAVEL LTD,1011705242,38.99,Travel and Subsistence Week 7,BD1 5HQ,ADMIN
FOOD STANDARDS AGENCY - Westminster,FOOD STANDARDS AGENCY - Westminster,2018-02-14,EXP - PURCHASE OF GOODS/SERVICES - TAXI SERVICES,IT Information & Knowledge Management,REDFERN TRAVEL LTD,1011705112,37.75,Travel and Subsistence Week 5,BD1 5HQ,ADMIN
FOOD STANDARDS AGENCY - Westminster,FOOD STANDARDS AGENCY - Westminster,2018-02-07,EXP - PURCHASE OF GOODS/SERVICES - RAIL TRAVEL,Food Production Branch,REDFERN TRAVEL LTD,1011705030,37.6,Travel and Subsistence Week 4,BD1 5HQ,ADMIN
FOOD STANDARDS AGENCY - Westminster,FOOD STANDARDS AGENCY - Westminster,2018-02-07,EXP - PURCHASE OF GOODS/SERVICES - SUBSISTENCE,Regulatory Delivery ,REDFERN TRAVEL LTD,1011705030,36.01,Travel and Subsistence Week 4,BD1 5HQ,ADMIN
FOOD STANDARDS AGENCY - Westminster,FOOD STANDARDS AGENCY - Westminster,2018-02-27,EXP - PURCHASE OF GOODS/SERVICES - RAIL TRAVEL,Contaminants Policy & Strategy Unit,REDFERN TRAVEL LTD,1011705242,36,Travel and Subsistence Week 7,BD1 5HQ,ADMIN
FOOD STANDARDS AGENCY - Westminster,FOOD STANDARDS AGENCY - Westminster,2018-02-14,EXP - PURCHASE OF GOODS/SERVICES - RAIL TRAVEL,Programme and project delivery,REDFERN TRAVEL LTD,1011705112,35.8,Travel and Subsistence Week 5,BD1 5HQ,ADMIN
FOOD STANDARDS AGENCY - Westminster,FOOD STANDARDS AGENCY - Westminster,2018-02-07,EXP - PURCHASE OF GOODS/SERVICES - RAIL TRAVEL,Wales and West 2 (Wales),REDFERN TRAVEL LTD,1011705030,35.15,Travel and Subsistence Week 4,BD1 5HQ,PROGRAMME
FOOD STANDARDS AGENCY - Westminster,FOOD STANDARDS AGENCY - Westminster,2018-02-20,EXP - PURCHASE OF GOODS/SERVICES - RAIL TRAVEL,Animal Feed Branch,REDFERN TRAVEL LTD,1011705166,35,Travel and Subsistence Week 6,BD1 5HQ,ADMIN
FOOD STANDARDS AGENCY - Westminster,FOOD STANDARDS AGENCY - Westminster,2018-02-14,EXP - PURCHASE OF GOODS/SERVICES - OTHER TRAVEL,Internal Audit,REDFERN TRAVEL LTD,1011705112,33.99,Travel and Subsistence Week 5,BD1 5HQ,ADMIN
FOOD STANDARDS AGENCY - Westminster,FOOD STANDARDS AGENCY - Westminster,2018-02-14,EXP - PURCHASE OF GOODS/SERVICES - TAXI SERVICES,EU Regulatory Reform Branch,REDFERN TRAVEL LTD,1011705112,33.84,Travel and Subsistence Week 5,BD1 5HQ,ADMIN
FOOD STANDARDS AGENCY - Westminster,FOOD STANDARDS AGENCY - Westminster,2018-02-27,EXP - PURCHASE OF GOODS/SERVICES - RAIL TRAVEL,Wales and West 2 (Wales),REDFERN TRAVEL LTD,1011705242,33.5,Travel and Subsistence Week 7,BD1 5HQ,PROGRAMME
FOOD STANDARDS AGENCY - Westminster,FOOD STANDARDS AGENCY - Westminster,2018-02-20,EXP - PURCHASE OF GOODS/SERVICES - TAXI SERVICES,Non Meat Field Ops,REDFERN TRAVEL LTD,1011705166,33.1,Travel and Subsistence Week 6,BD1 5HQ,PROGRAMME
FOOD STANDARDS AGENCY - Westminster,FOOD STANDARDS AGENCY - Westminster,2018-02-27,EXP - PURCHASE OF GOODS/SERVICES - TAXI SERVICES,Operational Delivery,REDFERN TRAVEL LTD,1011705242,32.09,Travel and Subsistence Week 7,BD1 5HQ,PROGRAMME
FOOD STANDARDS AGENCY - Westminster,FOOD STANDARDS AGENCY - Westminster,2018-02-07,EXP - PURCHASE OF GOODS/SERVICES - RAIL TRAVEL,Analysis & Research Branch,REDFERN TRAVEL LTD,1011705030,30.8,Travel and Subsistence Week 4,BD1 5HQ,ADMIN
FOOD STANDARDS AGENCY - Westminster,FOOD STANDARDS AGENCY - Westminster,2018-02-20,EXP - PURCHASE OF GOODS/SERVICES - RAIL TRAVEL,Microbiological Food Safety Branch,REDFERN TRAVEL LTD,1011705166,30.5,Travel and Subsistence Week 6,BD1 5HQ,ADMIN
FOOD STANDARDS AGENCY - Westminster,FOOD STANDARDS AGENCY - Westminster,2018-02-27,EXP - PURCHASE OF GOODS/SERVICES - TAXI SERVICES,IT Information & Knowledge Management,REDFERN TRAVEL LTD,1011705242,30.17,Travel and Subsistence Week 7,BD1 5HQ,ADMIN
FOOD STANDARDS AGENCY - Westminster,FOOD STANDARDS AGENCY - Westminster,2018-02-07,EXP - PURCHASE OF GOODS/SERVICES - TAXI SERVICES,Regulatory Delivery ,REDFERN TRAVEL LTD,1011705030,30.14,Travel and Subsistence Week 4,BD1 5HQ,ADMIN
FOOD STANDARDS AGENCY - Westminster,FOOD STANDARDS AGENCY - Westminster,2018-02-14,EXP - PURCHASE OF GOODS/SERVICES -  FOREIGN AIR TRAVEL,Additives,REDFERN TRAVEL LTD,1011705112,30,Travel and Subsistence Week 5,BD1 5HQ,ADMIN
FOOD STANDARDS AGENCY - Westminster,FOOD STANDARDS AGENCY - Westminster,2018-02-07,EXP - PURCHASE OF GOODS/SERVICES - OTHER TRAVEL,Analysis & Research Branch,REDFERN TRAVEL LTD,1011705030,26.6,Travel and Subsistence Week 4,BD1 5HQ,ADMIN
FOOD STANDARDS AGENCY - Westminster,FOOD STANDARDS AGENCY - Westminster,2018-02-14,EXP - PURCHASE OF GOODS/SERVICES - RAIL TRAVEL,North 4,REDFERN TRAVEL LTD,1011705112,25.2,Travel and Subsistence Week 5,BD1 5HQ,PROGRAMME
FOOD STANDARDS AGENCY - Westminster,FOOD STANDARDS AGENCY - Westminster,2018-02-20,EXP - PURCHASE OF GOODS/SERVICES - RAIL TRAVEL,North 4,REDFERN TRAVEL LTD,1011705166,25.2,Travel and Subsistence Week 6,BD1 5HQ,PROGRAMME
FOOD STANDARDS AGENCY - Westminster,FOOD STANDARDS AGENCY - Westminster,2018-02-20,EXP - PURCHASE OF GOODS/SERVICES - RAIL TRAVEL,Resilience - Admin,REDFERN TRAVEL LTD,1011705166,24.6,Travel and Subsistence Week 6,BD1 5HQ,ADMIN
FOOD STANDARDS AGENCY - Westminster,FOOD STANDARDS AGENCY - Westminster,2018-02-14,EXP - PURCHASE OF GOODS/SERVICES - RAIL TRAVEL,Wales and West 2 (Wales),REDFERN TRAVEL LTD,1011705112,24.5,Travel and Subsistence Week 5,BD1 5HQ,PROGRAMME
FOOD STANDARDS AGENCY - Westminster,FOOD STANDARDS AGENCY - Westminster,2018-02-27,EXP - PURCHASE OF GOODS/SERVICES - OTHER TRAVEL,NI Food Safety,REDFERN TRAVEL LTD,1011705242,23.95,Travel and Subsistence Week 7,BD1 5HQ,ADMIN
FOOD STANDARDS AGENCY - Westminster,FOOD STANDARDS AGENCY - Westminster,2018-02-27,EXP - PURCHASE OF GOODS/SERVICES - RAIL TRAVEL,Programme and project delivery,REDFERN TRAVEL LTD,1011705242,23.6,Travel and Subsistence Week 7,BD1 5HQ,ADMIN
FOOD STANDARDS AGENCY - Westminster,FOOD STANDARDS AGENCY - Westminster,2018-02-27,EXP - PURCHASE OF GOODS/SERVICES - RAIL TRAVEL,East 1,REDFERN TRAVEL LTD,1011705242,22.1,Travel and Subsistence Week 7,BD1 5HQ,PROGRAMME
FOOD STANDARDS AGENCY - Westminster,FOOD STANDARDS AGENCY - Westminster,2018-02-20,EXP - PURCHASE OF GOODS/SERVICES - OTHER TRAVEL,Chief Executive & Private Office,REDFERN TRAVEL LTD,1011705166,21,Travel and Subsistence Week 6,BD1 5HQ,ADMIN
FOOD STANDARDS AGENCY - Westminster,FOOD STANDARDS AGENCY - Westminster,2018-02-20,EXP - PURCHASE OF GOODS/SERVICES - OTHER TRAVEL,Operations Assurance ,REDFERN TRAVEL LTD,1011705166,20.9,Travel and Subsistence Week 6,BD1 5HQ,PROGRAMME
FOOD STANDARDS AGENCY - Westminster,FOOD STANDARDS AGENCY - Westminster,2018-02-27,EXP - PURCHASE OF GOODS/SERVICES - OTHER TRAVEL,EU Regulatory Reform Branch,REDFERN TRAVEL LTD,1011705242,20.15,Travel and Subsistence Week 7,BD1 5HQ,ADMIN
FOOD STANDARDS AGENCY - Westminster,FOOD STANDARDS AGENCY - Westminster,2018-02-07,EXP - PURCHASE OF GOODS/SERVICES - RAIL TRAVEL,Wales and West 1 (England),REDFERN TRAVEL LTD,1011705030,19.8,Travel and Subsistence Week 4,BD1 5HQ,PROGRAMME
FOOD STANDARDS AGENCY - Westminster,FOOD STANDARDS AGENCY - Westminster,2018-02-14,EXP - PURCHASE OF GOODS/SERVICES - RAIL TRAVEL,Food Production Branch,REDFERN TRAVEL LTD,1011705112,18.7,Travel and Subsistence Week 5,BD1 5HQ,ADMIN
FOOD STANDARDS AGENCY - Westminster,FOOD STANDARDS AGENCY - Westminster,2018-02-14,EXP - PURCHASE OF GOODS/SERVICES - TAXI SERVICES,Imports & Exports Team (Admin),REDFERN TRAVEL LTD,1011705112,16.43,Travel and Subsistence Week 5,BD1 5HQ,ADMIN
FOOD STANDARDS AGENCY - Westminster,FOOD STANDARDS AGENCY - Westminster,2018-02-14,EXP - PURCHASE OF GOODS/SERVICES - TAXI SERVICES,Operational Delivery,REDFERN TRAVEL LTD,1011705112,16.36,Travel and Subsistence Week 5,BD1 5HQ,PROGRAMME
FOOD STANDARDS AGENCY - Westminster,FOOD STANDARDS AGENCY - Westminster,2018-02-20,EXP - PURCHASE OF GOODS/SERVICES - TAXI SERVICES,EU Regulatory Reform Branch,REDFERN TRAVEL LTD,1011705166,15.82,Travel and Subsistence Week 6,BD1 5HQ,ADMIN
FOOD STANDARDS AGENCY - Westminster,FOOD STANDARDS AGENCY - Westminster,2018-02-27,EXP - PURCHASE OF GOODS/SERVICES - TAXI SERVICES,Organisational Development,REDFERN TRAVEL LTD,1011705242,14.28,Travel and Subsistence Week 7,BD1 5HQ,ADMIN
FOOD STANDARDS AGENCY - Westminster,FOOD STANDARDS AGENCY - Westminster,2018-02-14,EXP - PURCHASE OF GOODS/SERVICES - OTHER TRAVEL,IT Information & Knowledge Management,REDFERN TRAVEL LTD,1011705112,13.7,Travel and Subsistence Week 5,BD1 5HQ,ADMIN
FOOD STANDARDS AGENCY - Westminster,FOOD STANDARDS AGENCY - Westminster,2018-02-27,EXP - PURCHASE OF GOODS/SERVICES - OTHER TRAVEL,Contaminants HoD,REDFERN TRAVEL LTD,1011705242,13.7,Travel and Subsistence Week 7,BD1 5HQ,ADMIN
FOOD STANDARDS AGENCY - Westminster,FOOD STANDARDS AGENCY - Westminster,2018-02-20,EXP - PURCHASE OF GOODS/SERVICES - TAXI SERVICES,Legal Branch A & Investigations,REDFERN TRAVEL LTD,1011705166,13.45,Travel and Subsistence Week 6,BD1 5HQ,ADMIN
FOOD STANDARDS AGENCY - Westminster,FOOD STANDARDS AGENCY - Westminster,2018-02-27,EXP - PURCHASE OF GOODS/SERVICES - TAXI SERVICES,Legal Branch A & Investigations,REDFERN TRAVEL LTD,1011705242,13.45,Travel and Subsistence Week 7,BD1 5HQ,ADMIN
FOOD STANDARDS AGENCY - Westminster,FOOD STANDARDS AGENCY - Westminster,2018-02-07,EXP - PURCHASE OF GOODS/SERVICES - TAXI SERVICES,Corporate Support Unit,REDFERN TRAVEL LTD,1011705030,13.25,Travel and Subsistence Week 4,BD1 5HQ,ADMIN
FOOD STANDARDS AGENCY - Westminster,FOOD STANDARDS AGENCY - Westminster,2018-02-07,EXP - PURCHASE OF GOODS/SERVICES - TAXI SERVICES,Regulating our Future,REDFERN TRAVEL LTD,1011705030,12.72,Travel and Subsistence Week 4,BD1 5HQ,ADMIN
FOOD STANDARDS AGENCY - Westminster,FOOD STANDARDS AGENCY - Westminster,2018-02-14,EXP - PURCHASE OF GOODS/SERVICES - OTHER TRAVEL,Planning and Performance,REDFERN TRAVEL LTD,1011705112,12.7,Travel and Subsistence Week 5,BD1 5HQ,ADMIN
FOOD STANDARDS AGENCY - Westminster,FOOD STANDARDS AGENCY - Westminster,2018-02-07,EXP - PURCHASE OF GOODS/SERVICES - TAXI SERVICES,Planning and Performance,REDFERN TRAVEL LTD,1011705030,11.03,Travel and Subsistence Week 4,BD1 5HQ,ADMIN
FOOD STANDARDS AGENCY - Westminster,FOOD STANDARDS AGENCY - Westminster,2018-02-14,EXP - PURCHASE OF GOODS/SERVICES - OTHER TRAVEL,Legal Branch A & Investigations,REDFERN TRAVEL LTD,1011705112,8.9,Travel and Subsistence Week 5,BD1 5HQ,ADMIN
FOOD STANDARDS AGENCY - Westminster,FOOD STANDARDS AGENCY - Westminster,2018-02-20,EXP - PURCHASE OF GOODS/SERVICES - SUBSISTENCE,Scientific Methods & Laboratory Policy,REDFERN TRAVEL LTD,1011705166,4.66,Travel and Subsistence Week 6,BD1 5HQ,ADMIN
FOOD STANDARDS AGENCY - Westminster,FOOD STANDARDS AGENCY - Westminster,2018-02-14,EXP - PURCHASE OF GOODS/SERVICES - SUBSISTENCE,EU Regulatory Reform Branch,REDFERN TRAVEL LTD,1011705112,2.33,Travel and Subsistence Week 5,BD1 5HQ,ADMIN
FOOD STANDARDS AGENCY - Westminster,FOOD STANDARDS AGENCY - Westminster,2018-02-20,EXP - PURCHASE OF GOODS/SERVICES - AIR TRAVEL,Operational Delivery,REDFERN TRAVEL LTD,1011705166,2.16,Travel and Subsistence Week 6,BD1 5HQ,PROGRAMME
FOOD STANDARDS AGENCY - Westminster,FOOD STANDARDS AGENCY - Westminster,2018-02-20,EXP - PURCHASE OF GOODS/SERVICES - SUBSISTENCE,Comms Directors Office,REDFERN TRAVEL LTD,1011705166,1.2,Travel and Subsistence Week 6,BD1 5HQ,ADMIN
FOOD STANDARDS AGENCY - Westminster,FOOD STANDARDS AGENCY - Westminster,2018-02-20,EXP - PURCHASE OF GOODS/SERVICES - SUBSISTENCE,Imports & Exports Team (Admin),REDFERN TRAVEL LTD,1011705166,1.2,Travel and Subsistence Week 6,BD1 5HQ,ADMIN
FOOD STANDARDS AGENCY - Westminster,FOOD STANDARDS AGENCY - Westminster,2018-02-14,EXP - PURCHASE OF GOODS/SERVICES - SUBSISTENCE,Chair & Deputy Chair,REDFERN TRAVEL LTD,1011705112,0.6,Travel and Subsistence Week 5,BD1 5HQ,ADMIN
FOOD STANDARDS AGENCY - Westminster,FOOD STANDARDS AGENCY - Westminster,2018-02-14,EXP - PURCHASE OF GOODS/SERVICES - FOREIGN SUBSISTENCE,Regulatory Delivery ,REDFERN TRAVEL LTD,1011705112,0.6,Travel and Subsistence Week 5,BD1 5HQ,ADMIN
FOOD STANDARDS AGENCY - Westminster,FOOD STANDARDS AGENCY - Westminster,2018-02-14,EXP - PURCHASE OF GOODS/SERVICES - FOREIGN SUBSISTENCE,Contaminants HoD,REDFERN TRAVEL LTD,1011705112,0.6,Travel and Subsistence Week 5,BD1 5HQ,ADMIN
FOOD STANDARDS AGENCY - Westminster,FOOD STANDARDS AGENCY - Westminster,2018-02-14,EXP - PURCHASE OF GOODS/SERVICES - FOREIGN SUBSISTENCE,Food Hygiene Policy Branch,REDFERN TRAVEL LTD,1011705112,0.6,Travel and Subsistence Week 5,BD1 5HQ,ADMIN
FOOD STANDARDS AGENCY - Westminster,FOOD STANDARDS AGENCY - Westminster,2018-02-14,EXP - PURCHASE OF GOODS/SERVICES - SUBSISTENCE,EU Exit,REDFERN TRAVEL LTD,1011705112,0.6,Travel and Subsistence Week 5,BD1 5HQ,ADMIN
FOOD STANDARDS AGENCY - Westminster,FOOD STANDARDS AGENCY - Westminster,2018-02-14,EXP - PURCHASE OF GOODS/SERVICES - FOREIGN SUBSISTENCE,EU Exit,REDFERN TRAVEL LTD,1011705112,0.6,Travel and Subsistence Week 5,BD1 5HQ,ADMIN
FOOD STANDARDS AGENCY - Westminster,FOOD STANDARDS AGENCY - Westminster,2018-02-14,EXP - PURCHASE OF GOODS/SERVICES - FOREIGN SUBSISTENCE,Internal Audit,REDFERN TRAVEL LTD,1011705112,0.6,Travel and Subsistence Week 5,BD1 5HQ,ADMIN
FOOD STANDARDS AGENCY - Westminster,FOOD STANDARDS AGENCY - Westminster,2018-02-20,EXP - PURCHASE OF GOODS/SERVICES - FOREIGN SUBSISTENCE,Chief Scientist,REDFERN TRAVEL LTD,1011705166,0.6,Travel and Subsistence Week 6,BD1 5HQ,ADMIN
FOOD STANDARDS AGENCY - Westminster,FOOD STANDARDS AGENCY - Westminster,2018-02-20,EXP - PURCHASE OF GOODS/SERVICES - SUBSISTENCE,Contaminants Policy & Strategy Unit,REDFERN TRAVEL LTD,1011705166,0.6,Travel and Subsistence Week 6,BD1 5HQ,ADMIN
FOOD STANDARDS AGENCY - Westminster,FOOD STANDARDS AGENCY - Westminster,2018-02-20,EXP - PURCHASE OF GOODS/SERVICES - FOREIGN SUBSISTENCE,Imports & Exports Team (Admin),REDFERN TRAVEL LTD,1011705166,0.6,Travel and Subsistence Week 6,BD1 5HQ,ADMIN
FOOD STANDARDS AGENCY - Westminster,FOOD STANDARDS AGENCY - Westminster,2018-02-20,EXP - PURCHASE OF GOODS/SERVICES - FOREIGN SUBSISTENCE,Regulatory & International,REDFERN TRAVEL LTD,1011705166,0.6,Travel and Subsistence Week 6,BD1 5HQ,ADMIN
FOOD STANDARDS AGENCY - Westminster,FOOD STANDARDS AGENCY - Westminster,2018-02-20,EXP - PURCHASE OF GOODS/SERVICES - SUBSISTENCE,Food Crime Unit - Prog,REDFERN TRAVEL LTD,1011705166,0.6,Travel and Subsistence Week 6,BD1 5HQ,PROGRAMME
FOOD STANDARDS AGENCY - Westminster,FOOD STANDARDS AGENCY - Westminster,2018-02-27,EXP - PURCHASE OF GOODS/SERVICES - SUBSISTENCE,Food Incidents & Resilience - Prog,REDFERN TRAVEL LTD,1011705242,-14.4,Travel and Subsistence Week 7,BD1 5HQ,PROGRAMME
FOOD STANDARDS AGENCY - Westminster,FOOD STANDARDS AGENCY - Westminster,2018-02-20,EXP - PURCHASE OF GOODS/SERVICES - RAIL TRAVEL,Programme and project delivery,REDFERN TRAVEL LTD,1011705166,-15.9,Travel and Subsistence Week 6,BD1 5HQ,ADMIN
FOOD STANDARDS AGENCY - Westminster,FOOD STANDARDS AGENCY - Westminster,2018-02-14,EXP - PURCHASE OF GOODS/SERVICES - SUBSISTENCE,Food Incidents & Resilience - Prog,REDFERN TRAVEL LTD,1011705112,-16.65,Travel and Subsistence Week 5,BD1 5HQ,PROGRAMME
FOOD STANDARDS AGENCY - Westminster,FOOD STANDARDS AGENCY - Westminster,2018-02-27,EXP - PURCHASE OF GOODS/SERVICES - RAIL TRAVEL,Wales and West 2 (England),REDFERN TRAVEL LTD,1011705242,-87.3,Travel and Subsistence Week 7,BD1 5HQ,PROGRAMME
FOOD STANDARDS AGENCY - Westminster,FOOD STANDARDS AGENCY - Westminster,2018-02-20,EXP - PURCHASE OF GOODS/SERVICES - SUBSISTENCE,Operational Delivery,REDFERN TRAVEL LTD,1011705166,-203.27,Travel and Subsistence Week 6,BD1 5HQ,PROGRAMME
FOOD STANDARDS AGENCY - Westminster,FOOD STANDARDS AGENCY - Westminster,2018-02-07,EXP - PURCHASE OF GOODS/SERVICES -  FOREIGN AIR TRAVEL,Food Hygiene Policy Branch,REDFERN TRAVEL LTD,1011705030,-2684.43,Travel and Subsistence Week 4,BD1 5HQ,ADMIN
